{"text_format":"1","workbook":"xlsx","n_sheets":22,"sheets":["Cover Page","Contents","Facility Info","Operational Data","Operational Summary","Perf. Form 1","Energy Form 1","Permit Compliance","Improvements","Public Liasion","CO2 N2O","Residue Quality ","Water","Air (CEMS)","Air (periodic)","HCl","SO2","NOx","TOC","Particulates","CO 95% 10 min","NH3"],"not_rendered":{"charts":7,"images":4,"macros":1,"external_links":0,"defined_names":22,"comments":0,"pivot_tables":0},"unopened":[],"bounds":{"document_bytes":16777216,"sheet_cells":100000,"rows_first":2000,"rows_last":500,"rows_between":2000,"halvings":0,"cell_chars":16384,"cell_head_chars":4096},"cells_cut":0,"cells_raw":0,"read":"whole","date_system":"1900"}

{"sheet":"Cover Page","index":0,"n_rows":53,"n_cols":14,"rows_kept":53,"cut":false,"hidden":false,"merged":[[48,2,48,3],[48,6,48,8],[52,2,52,3],[36,1,36,8],[40,2,40,8],[42,2,42,4],[44,2,44,4],[46,2,46,3],[46,6,46,8],[13,13,18,15],[34,1,34,8],[0,3,5,6],[7,1,23,8],[28,1,28,8],[30,1,30,8],[32,1,32,8]]}
[null,null,null,"Add company logo"]
[null,null,null,null,null,null,null,null,null,null,null,null,null,"Version 23.4a (for incinerators) - 15/11/2023"]
[]
[null,null,null,null,null,null,null,null,null,null,null,null,null,"Note that there is another version of this template available for co-incinerators"]
[]
[]
[]
[null,"Add photo"]
[]
[]
[]
[]
[null,null,null,null,null,null,null,null,null,null,null,null,null,"Notes:"]
[null,null,null,null,null,null,null,null,null,null,null,null,null,"This template may require adjustments by individual operators to meet specific reporting requirements as defined in the site Permit(s)"]
[]
[]
[]
[]
[]
[]
[]
[]
[]
[]
[]
[]
[]
[]
[null,"Annual Performance Report 2023"]
[]
[null,"Permit EPR/BR4551IC"]
[]
[null,"Kent Enviropower Limited"]
[]
[null,"Allington Incinerator, Allington Quarry"]
[]
[null,"Kent Enviropower Limited"]
[]
[null,"Year:",2023]
[]
[null,"Address:","Laverstoke Road, Allington, Maidstone, Kent. ME16 0LE"]
[]
[null,"Tel: ","0844 736 9990"]
[]
[null,"Email: "]
[]
[null,"Prepared by:","Trevor Ellis",null,null,"Position:","Environment Manager"]
[]
[null,"Approved by:","Tony Stanbridge",null,null,"Position:","General Manager"]
[]
[null,"Version:",1]
[]
[null,"Issue Date:","31st January 2024"]

{"sheet":"Contents","index":1,"n_rows":45,"n_cols":11,"rows_kept":45,"cut":false,"hidden":false,"merged":[[44,0,47,9],[37,1,37,6],[38,1,38,6],[39,1,39,6],[40,1,40,6],[41,1,41,6],[42,1,42,6],[36,1,36,6],[22,1,22,6],[23,1,23,6],[24,1,24,6],[27,1,27,6],[28,1,28,6],[29,1,29,6],[30,1,30,6],[31,1,31,6],[32,1,32,6],[35,1,35,6],[21,1,21,6],[9,1,9,6],[10,1,10,6],[11,1,11,6],[13,1,13,6],[14,1,14,6],[15,1,15,6],[16,1,16,6],[17,1,17,6],[18,1,18,6],[19,1,19,6],[20,1,20,6],[12,1,12,6],[4,10,7,14],[8,1,8,6],[3,1,3,6],[4,1,4,6],[5,1,5,6],[6,1,6,6],[7,1,7,6]]}
[{"$f":"+'Cover Page'!$B$29","v":"Annual Performance Report 2023"},null,null,null,{"$f":"+'Cover Page'!$B$33","v":"Kent Enviropower Limited"}]
[]
["Contents",null,null,null,null,null,null,null,null,null,"Notes:"]
["Section","Subject",null,null,null,null,null,"Page ",null,null,"Section references and Page nos. to be inserted"]
[null,"Facility Information",null,null,null,null,null,null,null,null,"Sections and Subjects may require adjustment by individual operators to meet specific reporting requirements as defined in the sites Permit(s)"]
[null,"Operational Data"]
[null,"Operational Summary"]
[null,"Performance Form 1"]
[null,"Energy Form 1"]
[null,"Permit Compliance"]
[null,"Improvements"]
[null,"Public Liasion"]
[null,"Carbon dioxide and nitrous oxide emissions"]
[null,"Residue Quality "]
[null,"Emissions to Water"]
[null,"Emissions to Air (periodically monitored)"]
[null,"Emissions to Air (continuously monitored)"]
[null,"Hydrogen Chloride emissions"]
[null,"Sulphur Dioxdie emsissions"]
[null,"Oxides of Notrigen emissions"]
[null,"Total Organic Carbon emissions"]
[null,"Particulate Matter emissions"]
[null,"Carbon Monoxide emissions"]
[null,"Ammonia emissions"]
[]
[]
["Version Control"]
["Section","Information",null,null,null,null,null,"Date"]
[]
[]
[]
[]
[]
[]
["Distribution"]
["Copy","Name, Role",null,null,null,null,null,"No."]
[]
[]
[]
[]
[]
[]
[]
[]
["This report is required under the Industrial Emissions Directive’s Article 55(2) requirements on reporting and public information on waste incineration plants and co-incineration plants, which require the operator to produce an annual report on the functioning and monitoring of the plant and make it available to the public. "]

{"sheet":"Facility Info","index":2,"n_rows":82,"n_cols":11,"rows_kept":82,"cut":false,"hidden":false,"merged":[[81,0,84,8],[4,0,17,8],[21,0,53,8],[4,10,13,13],[21,10,30,13],[54,0,80,8]]}
[{"$f":"+'Cover Page'!$B$29","v":"Annual Performance Report 2023"},null,null,null,{"$f":"+'Cover Page'!$B$33","v":"Kent Enviropower Limited"}]
[]
["Plant Description and Design",null,null,null,null,null,null,null,null,null,"Notes:"]
[]
["Installation Description\n\nThe Installation receives non hazardous municipal and industrial waste, recovers recyclable elements for reuse and eliminates the combustible element of the residue by burning in a fluidised bed furnace.  Energy is recovered from the process and converted to electricity in place of non-renewable fossil fuels. The combustion gases are cleaned to meet the standards required by the Directive before discharge from a tall chimney. Ashes and other solid residues are removed from the installation.\n\nThe Installation covers the site and the entire EfW plant including all EfW lines, waste reception, storage, on-site pre-treatment facilities, water, fuel and air supply systems, boiler, facilities for the treatment of exhaust gases, on-site facilities for treatment or storage of residues and waste water, stack, devices and systems for controlling combustion operations, recording and monitoring conditions.\n\nThe Installation has a design throughput of approx 580,000 tonnes per annum with an EfW capacity approx 560,000 tonnes per annum. The transfer loading station receives food waste and clean source separated recyclables which it reloads for onward transport and recovery.  There is a single waste reception followed by three independent waste treatment lines each complete with a heat recovery boiler, acid gas abatement, bag filter and a separate flue in the chimney. The heat produced from the combustion of the waste is used to generate steam in the boilers and the steam is then combined and passed to a steam turbine which generates approx 34.5 MW of electrical energy for export to the National Grid.",null,null,null,null,null,null,null,null,null,"Include summary of plant design, design capacity, no. of combustion lines, electrical and heat capacity and any other general information that describes the facility, its location and purpose "]
[]
[]
[]
[]
[]
[]
[]
[]
[]
[]
[]
[]
[]
[]
["Summary of Operational Processes and Procedures"]
[]
["Raw Materials\nWaste is delivered to the plant in road vehicles which are weighed before proceeding to the tipping\nhall. This is a fully enclosed building, maintained under slight negative pressure to ensure that no\nodours, dust or litter can escape the building. The vehicles carry either unsorted mixed municipal\nwaste, sorted waste for recycling or mixed recyclable waste and non recyclable waste and each tip\ninto the appropriate section of the tipping hall.\nThe unsorted mixed waste (black bag) is transferred by crane grab to a waste shredding line, it then\nmoves forward through a metals extraction section where ferrous metals are removed for recycling\nbefore moving to the prepared fuel bunker.\nThe facility also operates as a waste transfer site. It receives clean mixed recyclates and food wastes\ncollected in the community and loads them in bulk onto their designated transport vehicles for transport\noff site for recovery.\nA crane grab in the prepared fuel bunker both mixes the waste and charges the hoppers of the three\nincineration lines.\nHydrated lime for the flue gas cleaning process is delivered by bulk tanker and offloaded pneumatically\ninto three 125m3 silos vented through a reverse pulse jet filter.\nActivated carbon for the flue gas cleaning process is stored in dedicated silos that are pneumatically\nfilled from delivery trucks. There are three silos, one for each line, each equipped with filters to prevent\ndust emissions during filling.\nUrea, dissolved in water is stored in a fully bunded tank and is injected into the furnaces as necessary\nto control NOx emissions.\nCaustic soda for water treatment resin regeneration is delivered by bulk tanker and offloaded into a\n5.5 m3 tank with scrubber, inside the demineralisation area.\nHydrochloric acid for water treatment resin regeneration is delivered by bulk tanker and offloaded into\na 5.5 m3 tank vented through the caustic soda scrubber in a bund outside the demineralisation area.\nVarious other water treatment chemicals are delivered in appropriate containers and stored in bunded\nareas.\nGas oil for the combustion chamber burners and on-site vehicles is stored in a fully bunded 150 m3\ntank.\nSand for the fluidised bed furnaces is stored in 3 silos each of 55 cubic meters capacity.\nVarious maintenance materials (oils, greases, insulants, antifreezes, welding and fire fighting gases\netc.) are stored in the appropriate manner.\n                                                                                                                                                                                                                                                                                                                                                                                                                                                                                                                                                                                                                                                                                                                                                                                                                                                                                                                                                                                                                                                                                                                                        \n                                                                                                                                                                                                                                                                                                                                                                                                                                                                                         Combustion Process:-  The technology employed for incineration is the ROWITEC unit which uses a fluidised bed process.\nThe design has an inclined air distributor plate with a number of separate air supply chambers providing\ndifferential air flows across the bed, causing a revolving action. This technique promotes rapid and\nuniform mixing of the sand and bottom ash and ensures that heavy inert and non-combustible material\nmigrates to the sides of the bed where they can easily be removed.\nAn angled furnace wall above the fluidised bed zone restrains bed expansion under high fluidising air\nflows and so minimises particulate carry over. The elliptical patterns of air flow converge in the centre\nof the combustion area ensuring effective vertical and lateral turbulent mixing and high combustion\nefficiency and uniformity.\nThe waste is burned on a bed consisting of sand and ash that is held in suspension by an upward flow\nof combustion air that circulates the combustion mixture up to the throat of the furnace.\nThe furnace operating design is based on a thermal capacity of 53.8MW at full load and this can be\nachieved over the typical range of waste calorific values expected with municipal waste.\nThe combustion air system provides the furnace with the total air requirements for fluidisation and\ncombustion. Primary air is supplied to the bottom of the combustion chamber and fluidises the bed.\nThis air is extracted from the waste reception and storage buildings and destroys all odours in the\ncombustion chamber.\nEach furnace is equipped with two fuel oil burners for use at start-up to heat the furnace and also\nduring extreme reductions in waste fuel calorific value when the temperature of the furnace would\notherwise fall below 850 degrees Centigrade.\nCombustion control of the furnace will be achieved through a combination of furnace bed and freeboard\ntemperature control, primary air flow control, oxygen control within the flue gas and furnace load.\nRecirculated flue gas is fed to the furnace bed as a cooling medium to control the furnace bed\ntemperature and also to assist the control of NOx by influencing the combustion temperature conditions\nwithin the furnace.\nThe furnace bed is managed to remove non-combustible material (bottom ash) from the bed and\nmaintain the sand level within the optimum operating range. Bottom ashes produced in the furnace\ntogether with sand migrate down the slope of the furnace to the discharge section located at each side\nof the bed. The bottom ash and sand are both withdrawn from the discharge sections of the bed by\ntwo water-cooled discharge screw conveyors. Material passing out of the screw conveyors is\ndischarged to a vibrating screen. Undersize material is returned to the sand hopper for re-use within\nthe furnace while the oversized material is sent off site for recovery or re-use or landfill.",null,null,null,null,null,null,null,null,null,"Include summary of key processes and procedures such as (but not limited to); waste reception, control rooms, grate, bed and boiler, energy & heat  generation, cooling systems, residue management, emission controls, health and safety systems, maintenance"]
[]
[]
[]
[]
[]
[]
[]
[]
[]
[]
[]
[]
[]
[]
[]
[]
[]
[]
[]
[]
[]
[]
[]
[]
[]
[]
[]
[]
[]
[]
[]
[]
["\nEnergy Recovery\nHot gases from the furnace pass through to a boiler designed to generate steam. The boiler comprises\ntwo fully water cooled radiation chambers, a single pass horizontal plain tube convective heating\nsurface, incorporating a three stage convective superheater unit and a plain tube economiser section.\nThe economiser is designed for high velocity gas flow to minimise the reformation of dioxins in the\ncritical de Novo synthesis range.\nSteam is generated at 65 bar and a final temperature of 420 degrees Centigrade.\nThe high pressure steam from all three boilers feeds into a common header which in turn will feed a\ncondensing steam turbine that will generate electricity. Steam exiting the turbine will be condensed in\nan air cooled condenser and the condensate returned to the boilers.\nGas Cleaning\nThe plant is designed to meet the requirements of the Industrial Emissions Directive as a minimum for\nreleases to air by a combination of main process design and operation and abatement equipment.\nFlue gases pass from the boiler to the gas cleaning equipment. The gas passes to an electrostatic\nprecipitator (ESP) for the separation of ash carried over from the furnace with the flue gas. Material\ncollected in the ESP will be discharged by means of rotary valves and chain conveyors and then\npneumatically fed to the ash silos or re-injected into the flue gas cleaning system.\nGases leaving the ESP enter the gas cleaning system. This comprises a circo clean reactor and bag\nfilter system. Gases entering the circo clean reactor will be at a temperature of 190 to 230 degrees C\nand will come into contact with a mixture of water, hydrated lime and activated carbon that have been\ninjected into the reactor. The reactor is designed to reduce or remove acidic pollutants such as HCl,\nSO2 and HF by the use of the hydrated lime and dioxins and furans, PCBs, PAHs, mercury vapour and\nheavy metal salts such as mercury chloride by the use of the activated carbon. The injected water enhances the reactions and cools the gas. The control system of the circo clean reactor optimises the\nuse of reactants by balancing the feed rate with the concentration of the pollutants entering the circo\nclean reactor.\nThe final stage of the gas cleaning system is the bag filter unit which separates the particulate material\nfrom the flue gas. The baghouse filter consists of compartments each of which contains a number of\ntubular filter bags. A thick porous layer of particulate builds on the bag surfaces to form a filter cake\nwhich efficiently removes ultra fine particles from the gas stream and the excess lime continues to\nreact with the acid gases.\nBag house residue is discharged from the compartments via the integrated buffer storage by a closed\npneumatic conveying system into the reaction product silos. Silos are equipped with a filter, hopper\nheating and fluidisation system to assist discharge. The residue is then discharged directly into road\nvehicles under dust free conditions for transport off site to a licensed facility.\nNitrogen oxides (NOx) abatement is achieved by the use of both flue gas recirculation (FGR) and\nselective non-catalytic reduction (SNCR). The SNCR is based on the injection of urea into the furnace\nchambers before the boilers and before the lime and carbon injection and before the gas passes to\nbag filters.\nThe cleaned gas then discharges to atmosphere via three 80-metre flues in a common stack at an\nefflux velocity in excess of 15 ms-1 at maximum throughput.\nAncillary Operations\nDemineralised water is required to compensate for boiler blowdown losses. A package\ndemineralisation plant provides this water. The ion exchange resins are regenerated using sodium\nhydroxide and hydrochloric acid and the regeneration effluent is routed through a neutralisation tank\nto the collection pit for reuse where possible.\nAsh Handling\nBottom ash, the combined boiler and ESP ash and the flue gas treatment residue (FGTR) from the\nbag filter system, are each sent for separate disposal off site by licensed contractors subject to waste\nlicensing legislation. FGTR is not mixed with any other ash at any time. The bottom ash is likely to be\nsubject to ferrous and non ferrous metals extraction by the contractors before disposal or reuse. All\noperations will be subject to waste licensing legislation and be tracked by the Environment Agency. At\nleast quarterly sampling of the bottom ash will be carried out to ensure effective burn out is being\nachieved by testing for the “loss on ignition” of the residual ash. All other solid waste residues arising\nfrom the operation of the process will be removed from site, in enclosed containers, for disposal by\nsuitable contractors.\nLiquid Effluent and Site Drainage\nUncontaminated surface water from the roads and parking area that is not reused within the process\nwill be discharged to sewer.\n"]
[]
[]
[]
[]
[]
[]
[]
[]
[]
[]
[]
[]
[]
[]
[]
[]
[]
[]
[]
[]
[]
[]
[]
[]
[]
[]
["Emissions Monitoring\nEmissions from the stack are continuously monitored for: particulate, carbon monoxide (CO), ammonia\n(NH3), sulphur dioxide (SO2), hydrogen chloride (HCl), oxygen (O2), nitrogen oxides (NOx) \nNitrous Oxide (N2O) Carbon Dioxide (CO2) and volatile\norganic compounds (VOC). In addition periodic sampling and measurement will be carried out for\nmetals cadmium (Cd), thallium (Tl), mercury (Hg), antimony (Sb), arsenic (As), lead (Pb), chromium\n(Cr), cobalt (Co), copper (Cu), manganese (Mn), nickel (Ni), vanadium (V), dioxins and furans, dioxin\nlike PCBs and hydrogen fluoride (HF). Periodic measurements are carried out\nbi annually and in some instances annually.\n"]

{"sheet":"Operational Data","index":3,"n_rows":67,"n_cols":10,"rows_kept":67,"cut":false,"hidden":false,"merged":[[5,9,7,9],[54,0,58,0],[33,1,38,1],[3,1,3,2],[7,1,19,1],[23,1,26,1],[28,1,29,1],[9,9,20,9],[21,9,25,9]]}
[{"$f":"+'Cover Page'!$B$29","v":"Annual Performance Report 2023"},null,null,null,{"$f":"+'Cover Page'!$B$33","v":"Kent Enviropower Limited"}]
[]
["Operational Data"]
["Plant Size",560000,null,"tonnes pa",41670,"MWth",376680,"MWe",null,"Notes:"]
["No. of combustion lines",3,null,"No. of Turbines:",null,1,null,null,null,"* - RDF to include SRF "]
[null,null,null,null,null,null,null,null,null,"** - Combusted tonnage = tonnes delivered in period + (tonnes in bunker at start of period – tonnes in bunker at end of period), or equivalent calculation depending on plant type"]
["Waste types received","Unit","Q1","Q2","Q3","Q4","Year Total","%"]
["Household / Local Authority","tonnes",82934.740000000005,85185.77,81948.500000000015,79684.479999999996,{"$f":"SUM(C8:F8)","v":329753.49},{"$f":"IF(G8>0,G8/$G$18,\"-\")","v":0.64477885121158585}]
["Commercial & Industrial ",null,33234.76,47020.36,39970.54,35558.42,{"$f":"SUM(C9:F9)","v":155784.08000000002},0.30461021091680879,null,"*** - CHP plants only"]
["Hazardous ",null,null,null,null,null,0,"-",null,"**** Availability Definition: 'the availability of a line is to be calculated by the number of hours the line reported Continuously Monitored emission levels to the Regulator through the calendar year divided by the total number of hours in that year. \n\nThe overall plant availability is calculated as the Mean of all lines in the plant. For clarity this includes periods of abnormal operation.'  \n\nRationale: The primary function of an Energy from Waste facility is the disposal of waste. It follows therefore that the availability of a plant is determined by the period of time a facility spends undertaking this activity."]
["Clinical",null,null,null,null,null,0,"-"]
["Waste wood (biomass) ",null,null,null,null,null,0,"-"]
["Refuse Derived Fuel * - H'hold/LA",null,null,null,null,null,{"$f":"SUM(C13:F13)","v":0},"-"]
["Refuse Derived Fuel *  - C&I",null,null,null,null,null,0,"-"]
["Food waste",null,1061.42,992.28,988.4,1054.96,4097.0599999999995,8.0111286771974415E-3]
["Recyclates waste",null,5543.76,4853.8599999999997,4868.7,4143.4799999999996,{"$f":"SUM(C16:F16)","v":19409.8},3.7952679579666131E-2]
["Card/Paper",null,655.28,554.84,560.76,605.76,2376.64,4.6471296147419195E-3]
["Total waste received",null,{"$f":"SUM(C8:C17)","v":123429.95999999999},{"$f":"SUM(D8:D17)","v":138607.10999999999},{"$f":"SUM(E8:E17)","v":128336.9},{"$f":"SUM(F8:F17)","v":121047.09999999999},511421.06999999995]
["Rejected Waste ",null,143.4,7.56,11.28,152.66,{"$f":"SUM(C19:F19)","v":314.89999999999998},{"$f":"IF(G19>0,G19/$G$18,\"-\")","v":6.157352883407796E-4}]
["Unprocessed waste transferred out",null,7260.46,6400.98,6417.86,5804.2,{"$f":"SUM(C20:F20)","v":25883.5},{"$f":"IF(G20>0,G20/$G$18,\"-\")","v":5.0610937871605491E-2}]
["Total waste combusted **",null,113030,124466,118594,111824,{"$f":"SUM(C21:F21)","v":467914}]
[null,null,null,null,null,null,null,null,null,"Password for protected cells\nA password has been set to prevent accidental  editing of cells with formulae. \nIf you still need to make an edit for some reason then the password = 1234"]
["Energy Usage / Export","Unit","Q1","Q2","Q3","Q4","Year Total","KWh/te"]
["Power Generated","MWh",63805,71159,71022,62413,{"$f":"SUM(C24:F24)","v":268399},{"$f":"IF(G24>0,G24*1000/$G$21,\"-\")","v":573.60754326649771}]
["Power Exported",null,49620,55495,55078,47782,{"$f":"SUM(C25:F25)","v":207975},{"$f":"IF(G25>0,G25*1000/$G$21,\"-\")","v":444.4727022487038}]
["Power Used on site",null,14451,15779,16076,14705,{"$f":"SUM(C26:F26)","v":61011},{"$f":"IF(G26>0,G26*1000/$G$21,\"-\")","v":130.38934505058623}]
["Power Imported",null,266,115,132,74,587,{"$f":"IF(G27>0,G27*1000/$G$21,\"-\")","v":1.2545040327923507}]
["Parasitic Load","%",{"$f":"IF(C24>0,1-C25/(C24+C27),\"-\")","v":0.22554665917497774},{"$f":"IF(D24>0,1-D25/(D24+D27),\"-\")","v":0.22138507730729295},{"$f":"IF(E24>0,1-E25/(E24+E27),\"-\")","v":0.2259324844703039},{"$f":"IF(F24>0,1-F25/(F24+F27),\"-\")","v":0.23532894842127161},{"$f":"IF(G24>0,1-G25/(G24+G27),\"-\")","v":0.22681849612991012}]
["Thermal Energy Produced ***","MWh",null,null,null,null,{"$f":"SUM(C29:F29)","v":0},{"$f":"IF(G29>0,G29*1000/$G$21,\"-\")","v":"-"}]
["Thermal Energy Exported ***",null,null,null,null,null,0,{"$f":"IF(G30>0,G30*1000/$G$21,\"-\")","v":"-"}]
["R1 value (if applicable)","R1",null,null,null,null,0.69]
[]
["Waste Disposal & Recovery","Unit","Q1","Q2","Q3","Q4","Year Total","% inputs"]
["APC Residues - produced (including FGT, Boiler and ESP ash)","tonnes",10187.200000000001,11865.12,11635.72,9482.64,{"$f":"SUM(C34:F34)","v":43170.68},{"$f":"IF(G34>0,G34/$G$21,\"-\")","v":9.226199686267135E-2}]
["IBA - produced",null,11472.58,12644.96,11791.02,10661.92,46570.479999999996,{"$f":"IF(G35>0,G35/$G$21,\"-\")","v":9.9527861957539196E-2}]
["Metals recycling",null,3404.28,3911.64,3558.04,3185.48,{"$f":"SUM(C36:F36)","v":14059.439999999999},3.0047059929816159E-2]
["Other",null,0,0,0,0,{"$f":"SUM(C37:F37)","v":0},"-"]
["Other",null,0,0,0,0,0,"-"]
["Other",null,0,0,0,0,0,"-"]
[]
["Raw Material Usage","Unit","Q1","Q2","Q3","Q4","Year Total","kg or Ltr /te"]
["Mains Water","ltrs",24546971.1981567,32266321.505376302,38500450.537634403,38142972.043010801,{"$f":"SUM(C42:F42)","v":133456715.2841782},{"$f":"IF(G42>0,G42/$G$21,\"-\")","v":285.21633309577868}]
["Other Water","ltrs",null,null,null,null,{"$f":"SUM(C43:F43)","v":0},{"$f":"IF(G43>0,G43/$G$21,\"-\")","v":"-"}]
["Lime / hydrated lime","kgs",642000,706000,758000,768000,2874000,6.1421543275046266]
["Urea","kgs",0,0,23000,0,{"$f":"SUM(C45:F45)","v":23000},4.9154331778916635E-2]
["Activated carbon","kgs",83000,41000,109000,72000,305000,0.65182918228563369]
["Caustic Soda","kgs",24000,49000,42000,24000,{"$f":"SUM(C47:F47)","v":139000},0.2970631355334527]
["Hydrochloric Acid","kgs",20000,42000,51000,26000,{"$f":"SUM(C48:F48)","v":139000},0.2970631355334527]
["Sand","kgs",1033000,592000,717000,567000,2909000,6.2169543976029784]
["Ammonia","kgs",1000,0,0,0,1000,2.1371448599528972E-3]
["Salt","kgs",0,0,2000,2000,4000,8.5485794398115888E-3]
["Fuel oil","ltrs",477350,323490,307430,463060,1571330,3.3581598327897861]
[]
["Summary ","Line/Unit","Q1","Q2","Q3","Q4","Year Total",null,"Hrs in year "]
["Availability of waste combustion by line, hrs ****",1,1374,1748,1511,2098,{"$f":"SUM(C55:F55)","v":6731},{"$f":"+G55/$I$55","v":0.76837899543378996},8760]
[null,2,1773,2016,2153,1847,7789,{"$f":"+G56/$I$55","v":0.88915525114155247}]
[null,3,1948,1857,2167,1223,7195,0.82134703196347036]
[null,4]
[null,5]
["Overall Availability, mean avg. of all lines, hrs",null,{"$f":"AVERAGE(C55:C57)","v":1698.3333333333333},{"$f":"AVERAGE(D55:D57)","v":1873.6666666666667},1943.6666666666667,{"$f":"AVERAGE(F55:F57)","v":1722.6666666666667},{"$f":"AVERAGE(G55:G59)","v":7238.333333333333},0.8262937595129376]
["Hours of turbine operations, hrs",1,2108,2169,2167,2198,8642,0.98652968036529676]
["Hours of turbine operations, hrs",2,null,null,null,null,0,0]
["Hours of heat / steam export",null,null,null,null,null,0,{"$f":"IF(B63>0,G62/I55,\"n/a\")","v":"n/a"}]
["Net Calorific Value of waste","MJ/kg",10.337999999999999,10.242000000000001,10.638999999999999,10.303000000000001]
["Abnormal Events","qty.",0,1,0,0,1,{"$f":"IF(G65>0,\"yes\",\"no\")","v":"yes"}]
["Abnormal operation","hours",0,2.33,0,0,2.33,{"$f":"+(G66)/I55","v":2.6598173515981734E-4}]
["Permit Breaches","qty.",2,0,0,1,3,{"$f":"IF(G67>0,\"yes\",\"no\")","v":"yes"}]

{"sheet":"Operational Summary","index":4,"n_rows":31,"n_cols":11,"rows_kept":31,"cut":false,"hidden":false,"merged":[[4,0,26,8],[30,0,51,8],[4,10,13,13],[30,10,39,13]]}
[{"$f":"+'Cover Page'!$B$29","v":"Annual Performance Report 2023"},null,null,null,{"$f":"+'Cover Page'!$B$33","v":"Kent Enviropower Limited"}]
[]
["Summary of Plant Operations and Maintenance during the reporting year",null,null,null,null,null,null,null,null,null,"Notes:"]
[]
["Line 1 and Line 3 underwent planned maintenance outages in March and November this year, with particular focus in the following areas:\n\n-\tStatutory pressure system inspections\n-\tFurnace refractory inspection and repair/replacement\n-\tModification of furnace crossover profile to eliminate ash build-up inside the furnace\n-\tBoiler cleaning and inspection using non-destructive testing\n-\tInconel weld overlay of boiler tube to protect against corrosion from flue gas\n-\tInspection and overhaul of 120+ valves to improve efficiency\n-\tDry-ice cleaning of Electrostatic Precipitators to improve efficiency\n-\tInspection and replacement of residue ash hopper walls where thin\n-\tInspection and cleaning of electrical system components\n\nLine 2 was due to have an outage in September, but this was delayed until March 2024 in agreement with TUV (PSSR Competent Person).\n\nOutside of planned outages plant availability has remained roughly the same – challenges have included waste feed screw conveyors shearing unexpectedly, the failure of a gearbox on the Air Cooled Condenser, repeated failures of the Primary Air Fans. There are currently 60+ projects planned over the next 18 months to try and eliminate the repeated failures.",null,null,null,null,null,null,null,null,null,"Include summary of key operational and/or maintenance activity undertaken in the year, such as any major component upgrades and/or replacements "]
[]
[]
[]
[]
[]
[]
[]
[]
[]
[]
[]
[]
[]
[]
[]
[]
[]
[]
[]
[]
[]
[]
[]
["Summary of Residue Handling for the reporting year"]
[]
["Bottom ash, the combined boiler and ESP ash and the flue gas treatment residue (FGTR) from the\nbag filter system, are each sent for separate disposal off site by licensed contractors subject to waste\nlicensing legislation. FGT is not mixed with any other ash at any time. The bottom ash is likely to be\nsubject to ferrous and non ferrous metals extraction.\nIBA is subject to hazardous assessment twice a month and approx. 42 vehicles are sent off site every week for recovery.\nThe APC residues are tested quarterly and approx. 35 tankers are sent off site every week. ",null,null,null,null,null,null,null,null,null,"Include in here a summary of residue handling regimes and destinations "]

{"sheet":"Perf. Form 1","index":5,"n_rows":61,"n_cols":10,"rows_kept":61,"cut":false,"hidden":false,"merged":[[53,0,53,1],[55,0,55,9],[56,0,57,9],[44,0,44,9],[45,0,46,9],[49,0,49,1],[49,2,49,9],[51,0,51,1],[52,0,52,1],[42,0,42,3],[42,4,42,5],[42,7,42,8],[43,0,43,3],[43,4,43,5],[43,7,43,8],[40,0,40,3],[40,4,40,5],[40,7,40,8],[41,0,41,3],[41,4,41,5],[41,7,41,8],[31,0,31,3],[31,7,31,8],[32,0,32,3],[32,4,32,5],[32,7,32,8],[33,0,33,3],[33,4,33,5],[33,7,33,8],[23,0,23,3],[23,4,23,5],[23,6,23,7],[23,8,23,9],[25,0,25,9],[26,0,28,9],[21,0,21,1],[21,2,21,3],[21,4,21,5],[21,6,21,7],[21,8,21,9],[22,0,22,3],[22,4,22,5],[22,6,22,7],[22,8,22,9],[19,0,19,1],[19,2,19,3],[19,4,19,5],[19,6,19,7],[19,8,19,9],[20,0,20,1],[20,2,20,3],[20,4,20,5],[20,6,20,7],[20,8,20,9],[17,0,17,1],[17,2,17,3],[17,4,17,5],[17,6,17,7],[17,8,17,9],[18,0,18,1],[18,2,18,3],[18,4,18,5],[18,6,18,7],[18,8,18,9],[15,0,15,1],[15,2,15,3],[15,4,15,5],[15,6,15,7],[15,8,15,9],[16,0,16,9],[13,0,13,1],[13,2,13,3],[13,4,13,5],[13,6,13,7],[13,8,13,9],[14,0,14,3],[14,4,14,5],[14,6,14,7],[14,8,14,9],[11,0,11,1],[11,2,11,3],[11,4,11,5],[11,6,11,7],[11,8,11,9],[12,0,12,1],[12,2,12,3],[12,4,12,5],[12,6,12,7],[12,8,12,9],[9,0,9,9],[10,0,10,1],[10,2,10,3],[10,4,10,5],[10,6,10,7],[10,8,10,9],[2,0,2,4],[2,6,2,8],[3,1,3,4],[5,3,5,4],[5,6,5,7],[8,0,8,1],[8,2,8,3],[8,4,8,5],[8,6,8,7],[8,8,8,9],[39,7,39,8],[38,7,38,8],[37,7,37,8],[36,7,36,8],[35,7,35,8],[34,7,34,8],[38,0,38,3],[39,0,39,3],[34,0,34,3],[35,0,35,3],[36,0,36,3],[37,0,37,3],[39,4,39,5],[38,4,38,5],[37,4,37,5],[36,4,36,5],[35,4,35,5],[34,4,34,5]]}
[{"$f":"+'Cover Page'!C39","v":2023}," Annual Reporting Performance Form 1"]
[]
[{"$f":"+'Cover Page'!B31","v":"Permit EPR/BR4551IC"},null,null,null,null,"Operator: ",{"$f":"+'Cover Page'!B37:I37","v":0}]
["Facility:",{"$f":"+'Cover Page'!B33:I33","v":"Kent Enviropower Limited"},null,null,null,"Form:","Performance 1"]
[]
["Reporting  Period from: ",null,null,"2023-01-01",null,"to:","2023-12-31"]
[]
[{"$f":"+A1","v":2023},"Annual Reporting of Waste Disposal and Recovery"]
["Waste Description",null,"Disposal Route(s)",null,"Disposal Tonnes",null,"Recovery Tonnes",null,"% / tonne of waste incinerated"]
["1) Hazardous Wastes"]
["APC Residues (including FGT, Boiler and ESP ash)",null,"Landfill",null,12101.42,null,null,null,{"$f":"IF((E11+G11)>0,(E11+G11)/'Operational Data'!$G$21, \"-\")","v":2.5862487551131189E-2}]
["APC Residues (including FGT, Boiler and ESP ash)",null,"Recycling",null,null,null,31629.7,null,{"$f":"IF((E12+G12)>0,(E12+G12)/'Operational Data'!$G$21, \"-\")","v":6.7597250776852164E-2}]
[null,null,null,null,null,null,null,null,{"$f":"IF((E13+G13)>0,(E13+G13)/'Operational Data'!$G$21, \"-\")","v":"-"}]
[null,null,null,null,null,null,null,null,{"$f":"IF((E14+G14)>0,(E14+G14)/'Operational Data'!$G$21, \"-\")","v":"-"}]
["Total Hazardous Waste",null,null,null,{"$f":"SUM(E11:F14)","v":12101.42},null,{"$f":"SUM(G11:H14)","v":31629.7},null,{"$f":"IF((E15+G15)>0,(E15+G15)/'Operational Data'!$G$21, \"-\")","v":9.3459738327983349E-2}]
[]
["2) Non-Hazardous Wastes"]
["IBA",null,"Recycling",null,null,null,46570.48,null,{"$f":"IF((E18+G18)>0,(E18+G18)/'Operational Data'!$G$21, \"-\")","v":9.952786195753921E-2}]
["Ferrous Metal",null,"Recycling",null,null,null,14059.44,null,{"$f":"IF((E19+G19)>0,(E19+G19)/'Operational Data'!$G$21, \"-\")","v":3.0047059929816163E-2}]
["Process Water",null,"N/A",null,0,null,0,null,{"$f":"IF((E20+G20)>0,(E20+G20)/'Operational Data'!$G$21, \"-\")","v":"-"}]
[null,null,null,null,null,null,null,null,{"$f":"IF((E21+G21)>0,(E21+G21)/'Operational Data'!$G$21, \"-\")","v":"-"}]
[null,null,null,null,null,null,null,null,{"$f":"IF((E22+G22)>0,(E22+G22)/'Operational Data'!$G$21, \"-\")","v":"-"}]
["Total Non-Hazardous Waste",null,null,null,{"$f":"SUM(E18:F22)","v":0},null,{"$f":"SUM(G18:H22)","v":60629.920000000006},null,{"$f":"IF((E23+G23)>0,(E23+G23)/'Operational Data'!$G$21, \"-\")","v":0.12957492188735539}]
["TOTAL WASTE",null,null,null,{"$f":"+E23+E15","v":12101.42},null,{"$f":"+G23+G15","v":92259.62000000001},null,{"$f":"IF((E24+G24)>0,(E24+G24)/'Operational Data'!$G$21, \"-\")","v":0.22303466021533874}]
[]
["Operator’s comments :"]
["APCr continues to shift significantly from landfill to recycling and this trend is set to continue into 2024."]
[]
[]
[]
[{"$f":"+A1","v":2023},"Annual Reporting of Water and Other Raw Material Usage"]
["Raw Material",null,null,null,"Usage",null,"Unit","Specific Useage",null,"Unit"]
["Mains Water",null,null,null,133456.715,null,"m3",{"$f":"IF(E33>0,E33/'Operational Data'!$G$21,\"-\")","v":0.28521633248844874},null,"m3/te"]
["Total Water",null,null,null,133456.715,null,"m3",{"$f":"IF(E34>0,E34/'Operational Data'!$G$21,\"-\")","v":0.28521633248844874},null,"m3/te"]
["Lime / hydrated lime",null,null,null,{"$f":"+'Operational Data'!G44","v":2874000},null,"kgs",{"$f":"IF(E35>0,E35/'Operational Data'!$G$21,\"-\")","v":6.1421543275046266},null,"kg/te"]
["Urea",null,null,null,{"$f":"+'Operational Data'!G45","v":23000},null,"kgs",{"$f":"IF(E36>0,E36/'Operational Data'!$G$21,\"-\")","v":4.9154331778916635E-2},null,"kg/te"]
["Activated carbon",null,null,null,{"$f":"+'Operational Data'!G46","v":305000},null,"kgs",{"$f":"IF(E37>0,E37/'Operational Data'!$G$21,\"-\")","v":0.65182918228563369},null,"kg/te"]
["Caustic Soda",null,null,null,{"$f":"+'Operational Data'!G47","v":139000},null,"kgs",{"$f":"IF(E38>0,E38/'Operational Data'!$G$21,\"-\")","v":0.2970631355334527},null,"kg/te"]
["Hydrochloric Acid",null,null,null,{"$f":"+'Operational Data'!G48","v":139000},null,"kgs",{"$f":"IF(E39>0,E39/'Operational Data'!$G$21,\"-\")","v":0.2970631355334527},null,"kg/te"]
["Sand",null,null,null,{"$f":"+'Operational Data'!G49","v":2909000},null,"kgs",{"$f":"IF(E40>0,E40/'Operational Data'!$G$21,\"-\")","v":6.2169543976029784},null,"kg/te"]
["Ammonia",null,null,null,{"$f":"+'Operational Data'!G50","v":1000},null,"kgs",{"$f":"IF(E41>0,E41/'Operational Data'!$G$21,\"-\")","v":2.1371448599528972E-3},null,"kg/te"]
["Salt",null,null,null,{"$f":"+'Operational Data'!G51","v":4000},null,"kgs",{"$f":"IF(E42>0,E42/'Operational Data'!$G$21,\"-\")","v":8.5485794398115888E-3},null,"kg/te"]
["Fuel oil",null,null,null,{"$f":"+'Operational Data'!G52","v":1571330},null,"ltrs",{"$f":"IF(E43>0,E43/'Operational Data'!$G$21,\"-\")","v":3.3581598327897861},null,"ltrs/te"]
[]
["Operator’s comments :"]
["No comments for this section."]
[]
[]
[{"$f":"+A31","v":2023},"Annual Reporting of other performance indicators "]
["Parameter",null,"Results by Line"]
[null,null,"A1","A2","A3","A4","A5",null,"Turbine 1","Turbine 2"]
["Operating hours for the year, hours",null,6731,7789,7195,null,null,null,8642]
["Number of periods of abnormal operation, qty.",null,0,1,0]
["Cumulative hours of abnormal operation for this year, hours",null,0,2,0]
[]
["Operator’s comments :"]
["The number of periods of abnormal operation have reduded in 2024 from 2023."]
[]
[]
[]
["Signed: ",null,null,null,null,null,"Date:","31st January 2024"]

{"sheet":"Energy Form 1","index":6,"n_rows":29,"n_cols":8,"rows_kept":29,"cut":false,"hidden":false,"merged":[[15,0,15,2],[15,3,15,4],[15,6,15,8],[17,0,17,8],[18,0,24,8],[13,0,13,2],[13,3,13,4],[13,6,13,8],[14,0,14,2],[14,3,14,4],[14,6,14,8],[11,0,11,2],[11,3,11,4],[11,6,11,8],[12,0,12,2],[12,3,12,4],[12,6,12,8],[9,0,9,2],[9,3,9,4],[9,6,9,8],[10,0,10,2],[10,3,10,4],[10,6,10,8],[2,6,2,8],[4,1,4,4],[6,3,6,4],[6,6,6,7],[8,0,8,2],[8,3,8,4],[8,6,8,8]]}
[{"$f":"+'Cover Page'!C39","v":2023}," Annual Reporting of Energy Usage/Export"]
[]
[{"$f":"+'Cover Page'!B31","v":"Permit EPR/BR4551IC"},null,null,null,null,"Operator: ",{"$f":"+'Cover Page'!B37:I37","v":0}]
[]
["Facility:",{"$f":"+'Cover Page'!B33:I33","v":"Kent Enviropower Limited"},null,null,null,"Form:","Energy 1"]
[]
["Reporting  Period from: ",null,null,{"$f":"+'Perf. Form 1'!D6:E6","v":"2023-01-01"},null,"to:",{"$f":"+'Perf. Form 1'!G6:H6","v":"2023-12-31"}]
[]
["Energy Source",null,null,"Energy Usage",null,"Unit","Specific Useage (KWh/tonne incinerated"]
["Electricity Produced",null,null,{"$f":"+'Operational Data'!G24","v":268399},null,"MWh",{"$f":"+'Operational Data'!H24","v":573.60754326649771}]
["Electricity Imported   ",null,null,{"$f":"+'Operational Data'!G27","v":587},null,"MWh",{"$f":"+'Operational Data'!H27","v":1.2545040327923507}]
["Electricity Exported",null,null,{"$f":"+'Operational Data'!G25","v":207975},null,"MWh",{"$f":"+'Operational Data'!H25","v":444.4727022487038}]
["Gas Oil",null,null,1398.48,null,"tonnes",34.76]
["Steam/hot water exported",null,null,{"$f":"+'Operational Data'!G30","v":0},null,"GWh",{"$f":"+'Operational Data'!H30","v":"-"}]
[]
[]
[]
["Operator’s comments :"]
["A similar year to 2022 with the exception of imported electricty that was considerably less (2022 was 1936 MWh)"]
[]
[]
[]
[]
[]
[]
[]
[]
[]
["Signed: ",null,null,null,null,null,"Date:","31st January 2024"]

{"sheet":"Permit Compliance","index":7,"n_rows":44,"n_cols":12,"rows_kept":44,"cut":false,"hidden":false,"merged":[[25,7,25,9],[29,1,29,3],[32,1,32,3],[8,11,16,11],[27,0,27,10],[18,0,18,10],[32,4,32,6],[28,1,28,3],[28,4,28,6],[28,7,28,9],[29,4,29,6],[24,1,24,3],[24,4,24,6],[24,7,24,9],[25,1,25,3],[25,4,25,6],[33,1,33,3],[33,4,33,6],[30,1,30,3],[30,4,30,6],[31,1,31,3],[31,4,31,6],[21,1,21,3],[21,4,21,6],[21,7,21,9],[23,1,23,3],[23,4,23,6],[23,7,23,9],[22,1,22,3],[22,4,22,6],[19,1,19,3],[19,4,19,6],[19,7,19,9],[20,1,20,3],[20,4,20,6],[20,7,20,9],[15,0,15,1],[16,2,16,4],[16,5,16,8],[15,2,15,4],[15,5,15,8],[16,0,16,1],[12,2,12,4],[12,5,12,8],[9,0,9,1],[9,2,9,4],[14,0,14,1],[14,2,14,4],[14,5,14,8],[9,5,9,8],[10,0,10,1],[10,2,10,4],[10,5,10,8],[13,0,13,1],[13,2,13,4],[13,5,13,8],[11,0,11,1],[11,2,11,4],[7,0,7,1],[7,2,7,8],[8,0,8,1],[8,2,8,4],[8,5,8,8],[37,4,37,6],[36,4,36,6],[35,4,35,6],[34,4,34,6],[34,1,34,3],[36,1,36,3],[35,1,35,3],[11,5,11,8],[12,0,12,1],[43,4,43,8],[42,1,42,3],[42,4,42,6],[29,7,42,9],[22,7,22,9],[40,1,40,3],[40,4,40,6],[41,1,41,3],[41,4,41,6],[38,1,38,3],[38,4,38,6],[39,1,39,3],[39,4,39,6],[37,1,37,3]]}
[{"$f":"+'Cover Page'!$B$29","v":"Annual Performance Report 2023"},null,null,null,{"$f":"+'Cover Page'!$B$33","v":"Kent Enviropower Limited"}]
[]
["Summary of Permit Compliance"]
[]
["Compliance with permit limits for continuously monitored pollutants"]
[]
["The plant met its emission limits as shown in the table below:"]
["Substance",null,"Percentage time compliant during operationNote 1",null,null,null,null,null,null,null,null,"Notes:"]
[null,null,"Half-hourly limit",null,null,"Daily limit",null,null,null,null,null,"Note 1: Please report to 2 decimal places, i.e. xx.xx%\n\nNote 2: Please provide a brief summary of each notification or non-compliance in the table (rather than just referring to notifications that were sent to the Regulator), including stating the value of measured result for any ELV exceedances.   \n\n"]
["Particulates",null,1,null,null,1]
["Oxides of nitrogen",null,0.99990000000000001,null,null,1]
["Sulphur dioxide",null,1,null,null,1]
["Carbon monoxide",null,"100.00 % or \n100.00% 95% of 10-min averages",null,null,1]
["Total organic carbon",null,1,null,null,1]
["Hydrogen chloride",null,1,null,null,1]
["Hydrogen fluoride",null,1,null,null,1]
["Ammonia",null,1,null,null,1]
[]
["Summary of any notifications or non-compliances under the permit"]
["Date","Summary of notification or non-compliance [including Line/Reference]Note 2",null,null,"Reason ",null,null,"Measures taken to prevent reoccurrence"]
["2023-02-14","095 Schedule 5 - Line 2 Bi Annual testing",null,null,"The PAC screw speeds were at a minimum during the biannual\ntesting resulting in less PAC being delivered to the process. \n\nPAC screw speeds were reduced because of a DCS faceplate amendment on line 2 in Sept 22 to correspond with line 1 and 3 settings. \n\nThe logic behind the faceplate on line 2 was different to lines 1 and 3 resulting in dosing being reduced and resulting in a biannual test fail.",null,null,"Original settings restored\nLine 2 minimum dosing increased to 55% to allow system to get up to speed quicker\nSystem overhauled\nCheck weighers calibrated\nretest carried out and passed 22/03/2023"]
["2023-03-15","096 Schedule 5 - Line 2 PAC dosing",null,null,"Intermittent fault on a digital input card resulted in the PAC not being dosed for the period",null,null,"Replacement digital input card installed\nThe PAC dosing system has been interlocked with the waste feed via the DCS such that in the event of any future disruption to PAC dosing the waste feed stops i.e., it fails-to-safe."]
["2023-06-14","027 Line 2 PAC abnormal operation",null,null,"Line 2 loadcell mA signal drifted so that the DCS reading on the buffer tank was around 50kg, when the true measurement was lower. The effect that this has on the system is that the signal back from the buffer tank will not reach the lower PAC fill limit of 10kg and will eventually run out dry.",null,null,"To overcome this, the team manually dosed the system, so we did not run out of PAC and then the system was zeroed when the trend flat lined at around 18/20kg.\nThe loose electrical connection was tightened by one quarter turn and system returned to normal."]
["2023-11-18","097 Schedule 5 - Line 2 NOx half hour",null,null,"Atomisation air flows were found to be off to the SNCR lance",null,null,"Investigation continues into this event."]
[]
[]
[]
["Summary of any complaints received and actions to taken to resolve them."]
["Date","Summary of complaint [including Line/Reference]",null,null,"Reason *",null,null,"Measures taken to prevent reoccurrence"]
["2023-03-19","Odour",null,null,"Substantiated Operator","Substantiated Operator","Substantiated Operator","All odour complaints have been justified on wind direction information. Following any odour complaint the facility carries out an odour survey and checks all odour controls are in place and compliant. The complainant is then contacted (if details are avialable) and advised of any findings and very often invited to the facility for a site tour."]
["2023-03-27","Odour",null,null,"Substantiated Operator","Substantiated Operator","Substantiated Operator"]
["2023-04-01","Odour",null,null,"Substantiated Operator","Substantiated Operator","Substantiated Operator"]
["2023-05-15","Odour",null,null,"Substantiated Operator","Substantiated Operator","Substantiated Operator"]
["2023-05-16","Odour",null,null,"Substantiated Operator","Substantiated Operator","Substantiated Operator"]
["2023-05-24","Odour",null,null,"Substantiated Operator","Substantiated Operator","Substantiated Operator"]
["2023-05-24","Odour",null,null,"Substantiated Operator","Substantiated Operator","Substantiated Operator"]
["2023-06-13","Odour",null,null,"Substantiated Operator","Substantiated Operator","Substantiated Operator"]
["2023-06-13","Odour",null,null,"Substantiated Operator","Substantiated Operator","Substantiated Operator"]
["2023-06-27","Odour",null,null,"Substantiated Operator","Substantiated Operator","Substantiated Operator"]
["2023-06-29","Odour",null,null,"Substantiated Operator","Substantiated Operator","Substantiated Operator"]
["2023-07-24","Odour & noise",null,null,"Substantiated Operator - Noise not substantiated","Substantiated Operator","Substantiated Operator"]
["2023-08-06","Odour",null,null,"Substantiated Operator","Substantiated Operator","Substantiated Operator"]
["2023-08-09","Odour",null,null,"Substantiated Operator","Substantiated Operator","Substantiated Operator"]
[null,null,null,null,"* including whether substantiated by the operator or the EA"]

{"sheet":"Improvements","index":8,"n_rows":39,"n_cols":5,"rows_kept":39,"cut":false,"hidden":false,"merged":[[37,0,37,8],[38,0,47,8],[4,0,4,8],[5,0,13,8],[15,0,15,8],[16,0,24,8],[26,0,26,8],[27,0,35,8]]}
[{"$f":"+'Cover Page'!$B$29","v":"Annual Performance Report 2023"},null,null,null,{"$f":"+'Cover Page'!$B$33","v":"Kent Enviropower Limited"}]
[]
["Summary of Plant Improvements"]
[]
["Summary of any efficiency improvements that have been completed within the year."]
["We are working on improving combustion stability. This is being done by:\n\n-\tnew control logics have been installed and they are currently under test and fine tuning to obtain the best results.\n-\ttesting the addition of a second O2 sensor. This is also part of the combustion stability. Currently the material for the cooling tubes are being tested prior to installation and data recording of the O2 sensor. \n\nThis year 2024 we are expecting to see results and the possibility to install the sensor for data gathering.\n\nLED lighting still continuous as when light replacement at the end of the current lights life. "]
[]
[]
[]
[]
[]
[]
[]
[]
[]
["Summary of any permit improvement conditions that have been completed within the year and the resulting environmental benefits."]
["Following the issue of the version 012 BREF permit the following improvement conditions have been submitted on time:- IC2 Low and stable mercury. IC3 stable dioxins. IC4 Minimising NOx levels. IC5 Energy efficiency. This completes all the submissions of the Version 12 Permit Improvement condition submissions."]
[]
[]
[]
[]
[]
[]
[]
[]
[]
["Summary of any changes to the plant or operating techniques which required a variation to the permit and a summary of the resulting environmental impact."]
["None required"]
[]
[]
[]
[]
[]
[]
[]
[]
[]
["Summary of any other improvements made to the plant or planned to be made and a summary of the resulting environmental benefits."]
["1. 2023 planned abatement risk review was completed and is now being worked through. This is a significant in depth review of risk and will involve significant work through 2024.\n2. Charging points were not installed in 2023 and are back in the plan to install in 2024.\n3. Investment in new environmental front loaders and a road sweeper were completed in 2023.\n4. There has been a reduction in odour complaints following considerable effort in roller shutter door improvements and the installation of extra door control buttons located both inside and outside.\n5. Re profiling of the ash crossover ducts is proving successful in process stability. Lines 1 and 2 are complete with line 3 planned for March 2024. \n"]

{"sheet":"Public Liasion","index":9,"n_rows":29,"n_cols":5,"rows_kept":29,"cut":false,"hidden":false,"merged":[[25,0,26,1],[25,2,26,8],[28,0,28,8],[17,0,18,1],[19,0,20,1],[21,0,22,1],[17,2,22,8],[23,0,24,1],[23,2,24,8],[16,0,16,1],[16,2,16,8],[5,0,5,1],[5,2,5,8],[6,0,7,1],[8,0,9,1],[10,0,11,1],[12,0,13,1],[12,2,13,8],[15,0,15,8],[6,2,11,8]]}
[{"$f":"+'Cover Page'!$B$29","v":"Annual Performance Report 2023"},null,null,null,{"$f":"+'Cover Page'!$B$33","v":"Kent Enviropower Limited"}]
[]
["Details of Public & Stakeholder Liaison"]
[]
["Summary of events held during the reporting year."]
["Date",null,"Description"]
["2023-02-13",null,"The Facility has an active liaison group involving representatives from the following stakeholders:\n\n• Chairman - Mr Brian White\n• Environment Agency \n• 10 Local Residents \n• Councillors Walker and Hammond (TMBC members) \n• Councillors Robertson, Harwood and Daley (MBC members). Cllr Daley is also a member of KCC.\n• Councillors Homewood and Bird (KCC members)\n• Maidstone Borough Council Environmental Health, Wilcock \n• Councillors Walker and Balcombe (Aylesford Parish Council)\n• Tonbridge & Malling & Maidstone Borough Council Environmental Health \n• Kent County Council Waste Management \n• Kent Enviropower"]
[]
["2023-06-20"]
[]
["2023-10-24"]
[]
[]
[]
[]
["List of events planned for next year"]
["Date",null,"Description"]
["2024-02-01",null,"Opposite are the months for the Liaison meetings planned for 2024. There have been some spaces that have become available at the meeting. Invites have been sent out to prospective new members and all spaces have now been filled."]
[]
["2024-06-01"]
[]
["2024-10-01"]
[]
[]
[]
[]
[]
[]
["If you wish to be involved in the public liaison programme, please contact \nBrian White (Chairman) - Email: drbdwhite@yahoo.co.uk"]

{"sheet":"CO2 N2O","index":10,"n_rows":24,"n_cols":6,"rows_kept":24,"cut":false,"hidden":false,"merged":[[20,2,20,3],[23,1,23,3],[16,2,16,3],[4,0,4,3],[9,0,9,3],[17,0,17,3],[13,0,13,3],[12,0,12,1],[8,2,8,3],[11,2,11,3]]}
[{"$f":"+'Cover Page'!$B$29","v":"Annual Performance Report 2023"},null,{"$f":"+'Cover Page'!$B$33","v":"Kent Enviropower Limited"}]
[]
["Carbon dioxide emissions and biogenic content of waste inputs",null,null,null,null,"Notes:"]
[]
["Carbon dioxide emissions (all types of plant)"]
[null,"Annual mass of carbon dioxide released","tonnes ",566000]
[null,"Annual mass of carbon dioxide released per tonne of waste burned","t CO2 / t waste ",1.2]
[null,"Annual mass of carbon dioxide released per MWh of energy exported","t CO2 / MWh export ",2.72]
[null,"Description of how annual carbon dioxide mass emission has been calculated. \nSee Note 1","CO2 is obtained from a QAL 2 calibrated CEMS",null,null,"Note 1: Where available, data from CO2 CEMS should be used. \nOtherwise, only where no CEMS data is available, a suitable emissions factor should be used based on the tonnage of waste burned e.g.0.942 tCO2/t waste as per Tolvik report 2022, or other justified emissions factor  - refer to embedded Environment Agency guidance note above or updated version for suitable descriptive text."]
["Nitrous oxide emissions (only plants which use ammonia or urea to abate NOx emissions)"]
[null,"Annual mass emissions of nitrous oxide","tonnes N2O",6.5880000000000001]
[null,"Description of how annual nitrous oxide mass emission has been calculated\nSee Note 2","N2O is obtained from a QAL 2 calibrated CEMS",null,null,"Note 2: Where available, data from N2O CEMS should be used. \nIf no CEMS data is available, from periodic monitoring. Otherwise, a suitable emissions factor should be used based on the tonnage of waste burned e.g. 0.0981 kgN20/t waste as per 2021 Pollution Inventory data for plants with urea-based SNCR - refer to embedded Environment Agency guidance note above or updated version for suitable descriptive text."]
["Total annual carbon dioxide and nitrous oxide emissions. \nSee Note 3. ",null,"tonnes CO2e",1964,null,"Note 3: Total annual carbon dioxide and nitrous oxide emissions reported as carbon dioxide equivalent where 1 tonne nitrous oxide is equivalent to 298 tonne carbon dioxide"]
["Biogenic CO2 emissions (See Note 4)",null,null,null,null,"Note 4: Only plants combusting residual municipal waste, refuse derived fuel or solid recovered fuel"]
[null,"Percentage of total carbon dioxide emissions arising from biogenic waste","%",0.56000000000000005]
[null,"No. of measurements undertaken","Number","1 month sampling"]
[null,"Description of how percentage biogenic carbon dioxide emissions have been measured or calculated.\nSee Note 5","Determination of biogenic carbon content of fuel from stationary sources (based on ASTM D6866/EN ISO 13833)",null,null,"Note 5: Examples include direct measurement via C14 method or BIOMA software - refer to embedded Environment Agency guidance note above or updated version for suitable descriptive text, quoting standards where relevant. \nOtherwise, as an approximation (and in lieu of any more accurate metrics which may be developed in future), the measured or estimated biogenic fraction by net calorific value can be assumed to be the same as the biogenic CO2 fraction of the total CO2 emissions from the plant. "]
["Biogenic fraction of waste feedstock (See Note 4)"]
[null,"Yearly average biogenic percentage of the waste by net calorific value (NCV)","%",0.49519999999999997]
[null,"If sampling undertaken, no. of samples used to ascertain average biogenic % above","Number",1]
[null,"Description of how biogenic percentage (by NCV) has been calculated or estimated. \nSee Note 6","Waste feed analysis carried out annually (these figures are from the 2023 report). The % recorded is all wastes (recorded at 99.80%) minus the following non biogenic waste:-\nPlastic film 14.32%\nDense plastic 20.54%\nNote: Textiles 15.42% - This calculation assumed textiles are 100% biogenic.",null,null,"Note 6: Where available, data from waste sampling should be used; otherwise, an estimated figure with justification can be used, or a figure assumed on the basis of a national average e.g. 2017 WRAP data for residual waste of 51.8% biogenic energy content - refer to embedded Environment Agency guidance note above or updated version for suitable descriptive text, quoting standards where relevant. "]
[]
[null,"Comments:"]
[null,"CO2 and N2O have come directly from the continuous emission monitoring system (CEMS) and are both QAL 2 calibrated with calibration functions in place. Biogenic CO2 comes from a C14 testing process."]

{"sheet":"Residue Quality ","index":11,"n_rows":32,"n_cols":6,"rows_kept":32,"cut":false,"hidden":false,"merged":[[31,0,36,6],[28,3,28,4],[30,0,30,6],[23,0,24,1],[25,0,25,1],[26,0,26,1],[27,0,27,1],[28,0,28,1],[25,3,25,4],[26,3,26,4],[25,5,25,6],[26,5,26,6],[27,5,27,6],[28,5,28,6],[18,0,19,1],[18,2,19,6],[27,3,27,4],[23,2,24,2],[24,3,24,4],[24,5,24,6],[23,3,23,6],[22,0,22,6],[5,0,6,6],[10,0,11,1],[10,2,11,6],[16,0,17,1],[16,2,17,6],[12,0,13,1],[12,2,13,6],[14,0,15,1],[14,2,15,6],[8,0,8,6],[9,0,9,1],[9,2,9,6]]}
[{"$f":"+'Cover Page'!$B$29","v":"Annual Performance Report 2023"},null,null,null,{"$f":"+'Cover Page'!$B$33","v":"Kent Enviropower Limited"}]
[]
["Residue Quality Monitoring Requirements"]
[]
["Summary of monitoring undertaken and compliance"]
["Waste Description:  Bottom Ash\nParameter to be measured :\nTOC, Metals (Cd, Tl, Hg, Pb, Cr, Cu, Mn, Ni, As, Co, V, Sb, Zn)  and  their  compounds  and  \nthe total   soluble fraction of these metals, dioxins/ furans and dioxin like PCB’s. Sampling \nand analysis as per Agency ash sampling protocol.\n\nFrequency:\nQuarterly (with  the exception of the total soluble fraction which shall   be   \nsampled and analysed  before the use of a new disposal or recycling route).\nHazard assessment undertaken twice a month (24 samples a year)"]
[]
[]
["Commentary on any specific events"]
["Date & Event",null,"Description"]
["NA",null,"NA"]
[]
[]
[]
[]
[]
[]
[]
[]
[]
[]
[]
["Residue Quality Monitoring Results"]
["Parameter (unit) ",null,"Limit","Normal Operation "]
[null,null,null,"Bottom ash  ",null,"APC Residues"]
["Loss on Ignition (average %)",null,"<5%","NA*"]
["Total Organic Carbon (average %)",null,"<3%",6.0000000000000001E-3]
["No. of Assessments Undertaken",null,"---","28**",null,"4**"]
["No. of Hazardous Results",null,"---",0]
[]
["Comments :"]
["* The new permit variation BREF (BR4551IC version 012) no longer requires LOI to be recorded.\n** This equates to 24 IBA hazard assessments and 4 quarterly reports."]

{"sheet":"Water","index":12,"n_rows":36,"n_cols":9,"rows_kept":36,"cut":false,"hidden":false,"merged":[[23,0,23,2],[23,3,23,4],[24,0,24,2],[24,3,24,4],[28,0,28,2],[28,3,28,4],[25,0,25,2],[25,3,25,4],[26,0,26,2],[26,3,26,4],[27,0,27,2],[27,3,27,4],[22,0,22,2],[22,3,22,4],[14,0,15,1],[16,0,17,1],[18,0,19,1],[18,2,19,8],[5,0,6,8],[7,0,8,8],[9,0,10,8],[12,0,12,8],[13,0,13,1],[13,2,13,8],[35,0,35,2],[35,3,35,4],[14,2,17,8],[32,0,32,2],[32,3,32,4],[33,0,33,2],[33,3,33,4],[34,0,34,2],[34,3,34,4],[29,0,29,2],[29,3,29,4],[30,0,30,2],[30,3,30,4],[31,0,31,2],[31,3,31,4],[21,0,21,8]]}
[{"$f":"+'Cover Page'!$B$29","v":"Annual Performance Report 2023"},null,null,null,{"$f":"+'Cover Page'!$B$33","v":"Kent Enviropower Limited"}]
[]
["Emissions to Water"]
[]
["Summary of monitoring undertaken and compliance"]
["Parameters for which reports shall be made, in accordance with conditions of the Consent to the Discharge of Trade Effluent issued by Southern Water, are listed below and are measured monthly. \n\nThese are not Environmental Permit limits but limits for disposal of effluent water discharged down sewage drains."]
[]
[]
[]
[]
[]
[]
["Commentary on any specific events"]
["Date & Event",null,"Description"]
["2023-04-01",null,"This sample point has been problematic in the past because the point is very often dry. An action on our internal incident system 'Airsweb' number 18975 has been raised to review the point and see if a better sampling point can be found."]
[]
["2023-11-01"]
[]
[]
[]
[]
["Emissions to Water / Sewer"]
["Parameter",null,null,"Monitoring Frequency",null,"Limit","Target","Max.","Average"]
["Arsenic",null,null,"monthly",null,1,1,0.1,5.3333333333333337E-2]
["COD shaken",null,null,"monthly",null,800,800,54.6,16.925000000000001]
["Chromium",null,null,"monthly",null,1,1,0.1,6.4166666666666664E-2]
["Copper",null,null,"monthly",null,1,1,1,0.47333333333333333]
["Fluoride",null,null,"monthly",null,2,2,0.9,0.25916666666666666]
["Lead",null,null,"monthly",null,1,1,0.1,5.3333333333333337E-2]
["Molybdenum",null,null,"monthly",null,1,1,0.1,5.4166666666666662E-2]
["Nickel",null,null,"monthly",null,1,1,0.1,5.3333333333333337E-2]
["Selenium",null,null,"monthly",null,1,1,0.1,5.3333333333333337E-2]
["Suspended solids",null,null,"monthly",null,200,200,329,84.583333333333329]
["Sulphate",null,null,"monthly",null,500,500,128,42.592500000000001]
["Zinc",null,null,"monthly",null,3,3,0.5,0.11916666666666668]
["pH",null,null,"monthly",null,null,null,10.6,6.6416666666666666]

{"sheet":"Air (CEMS)","index":13,"n_rows":29,"n_cols":16,"rows_kept":29,"cut":false,"hidden":false,"merged":[[28,0,29,12],[13,0,14,0],[5,0,6,12],[7,0,8,12],[10,0,10,12],[11,0,12,0],[11,2,12,2],[11,1,12,1],[11,3,11,4],[11,5,11,6],[11,7,11,8],[11,9,11,10],[11,11,11,12],[14,13,15,13],[14,14,15,14],[14,15,15,15],[12,13,13,15],[26,0,26,12]]}
[{"$f":"+'Cover Page'!$B$29","v":"Annual Performance Report 2023"},null,null,null,null,null,null,null,{"$f":"+'Cover Page'!$B$33","v":"Kent Enviropower Limited"}]
[]
["Emissions to Air (continously monitored)"]
[null,null,null,null,null,null,null,null,null,null,null,null,null,"Notes:"]
["Summary of monitoring undertaken, standards used and compliance",null,null,null,null,null,null,null,null,null,null,null,null,"Template may require adjustment for any bespoke monitoring requirements of permit"]
["Monitoring is underatken as required by permit BR4551IC version 12 and all determinants are from QAL 2 calibrated CEMS.",null,null,null,null,null,null,null,null,null,null,null,null,"Please check that all default ELV values match those for your plant and edit if necessary!"]
[null,null,null,null,null,null,null,null,null,null,null,null,null,"Report to 1 decimal place"]
[]
[]
[]
["Results of emissions to air that are continuously monitored (maximum and average values for each line) - oxygen reference 11%"]
["Substance","Reference Period","Emission Limit Value**","A1",null,"A2",null,"A3",null,"A4",null,"A5"]
[null,null,null,"Max.","Avg.","Max.","Avg.","Max.","Avg.","Max.","Avg.","Max.","Avg.","** Denotes limits that were in force until 2 December 2023; from 3 December 2023 the following new limits applied (those not listed remained unchanged):"]
["Oxides of nitrogen","Daily mean","200 mg/m3 ",161.71026611328125,120.56243317654786,165.86648559570313,139.24933212093228,170.04701232910156,114.32627354624775]
[null,"½ hourly mean","400 mg/m3 ",383.53778076171875,123.35544139806699,476.520751953125,139.35878072830872,299.40142822265625,115.15466028501919,null,null,null,null,"Substance","Reference Period","Emission Limit Value"]
["Particulates","Daily mean","10 mg/m3",9.45648193359375,2.0782613235662351,4.1264100074768066,2.2305801653049788,6.8218188285827637,2.716850274686621]
[null,"½ hourly mean","30 mg/m3 ",25.995162963867188,3.0462784221568042,8.3146457672119141,2.2320402079459933,11.211446762084961,2.7063998508006484,null,null,null,null,"Oxides of nitrogen","Daily mean","180 mg/m3 "]
["Total Organic Carbon ","Daily mean","10 mg/m3 ",5.7483921051025391,0.39670737033781039,1.5308330059051514,0.2910732205446282,2.1830980777740479,0.41631315178809886,null,null,null,null,"Particulates","Daily mean","5 mg/m3 "]
[null,"*½ hourly mean","*20 mg/m3 ",345.99838256835898,0.44609590690422701,48.299690246582031,0.3007176173771739,40.805179595947266,0.42263999816742509,null,null,null,null,"Hydrogen chloride","Daily mean","8 mg/m3 "]
["Hydrogen chloride ","Daily mean","10 mg/m3 ",5.4714598655700684,2.2002910923446626,6.2118048667907715,3.6211750932071909,6.0097599029541016,3.5587887535457079,null,null,null,null,"Sulphur dioxide","Daily mean","40 mg/m3 "]
[null,"½ hourly mean","60 mg/m3 ",26.618011474609375,2.1859840064829505,16.190004348754883,3.6052543675373165,46.086284637451172,3.5379460666728644,null,null,null,null,"Ammonia","Daily mean","15 mg/m3 "]
["Sulphur dioxide","Daily mean","50 mg/m3 ",3.4514269828796387,0.62099770157705791,2.5012280941009521,0.68320822185873109,1.8606899976730347,0.39078683384910656]
[null,"½ hourly mean","200 mg/m3 ",102.40507507324219,0.60609738940186941,62.482345581054688,0.68569820972322415,166.16549682617188,0.41112664706664637]
["Carbon monoxide ","Daily mean","50 mg/m3 ",46.083366394042969,2.5225391962721586,22.609731674194336,2.0896273491476669,23.413125991821289,4.7291129995130854]
[null,"95%ile 10-min avg *","150 mg/m3 *",25.706792831420898,"N/A",12.558096885681152,"N/A",35.768840789794922,"N/A"]
[" Ammonia","Daily mean","10 mg/m3 ",0.69781798124313354,5.5974138809029815E-2,0.54214298725128174,7.5110419030360573E-2,0.69337397813796997,0.17239685401215041]
[]
["Comments :"]
["* TOC is 97% of all half hour averages in a rolling year and this has been compliant for all periods."]

{"sheet":"Air (periodic)","index":14,"n_rows":42,"n_cols":13,"rows_kept":42,"cut":false,"hidden":false,"merged":[[24,0,24,1],[32,3,32,4],[18,3,18,4],[17,3,17,4],[22,0,22,1],[22,3,22,4],[27,3,27,4],[23,3,23,4],[24,3,24,4],[31,3,31,4],[25,3,25,4],[26,3,26,4],[28,3,28,4],[19,0,19,1],[20,0,20,1],[20,3,20,4],[19,3,19,4],[21,3,21,4],[13,10,14,12],[15,10,16,10],[15,11,16,11],[15,12,16,12],[13,3,13,4],[14,3,14,4],[15,3,15,4],[16,3,16,4],[40,0,40,9],[34,3,34,4],[35,3,35,4],[33,0,33,1],[34,0,34,1],[35,0,35,1],[36,0,36,1],[33,3,33,4],[38,0,38,1],[37,3,37,4],[38,3,38,4],[37,0,37,1],[41,0,42,9],[25,0,25,1],[26,0,26,1],[21,0,21,1],[23,0,23,1],[39,0,39,1],[27,0,27,1],[28,0,28,1],[29,0,29,1],[30,0,30,1],[31,0,31,1],[32,0,32,1],[39,3,39,4],[29,3,29,4],[30,3,30,4],[36,3,36,4],[16,0,16,1],[17,0,17,1],[18,0,18,1],[13,0,13,1],[14,0,14,1],[15,0,15,1],[12,0,12,1],[11,3,11,4],[12,3,12,4],[9,0,10,1],[9,5,9,9],[9,3,10,4],[9,2,10,2],[5,10,8,13],[9,10,11,13],[8,0,8,9],[5,0,6,9],[11,0,11,1]]}
[{"$f":"+'Cover Page'!$B$29","v":"Annual Performance Report 2023"},null,null,null,{"$f":"+'Cover Page'!$B$33","v":"Kent Enviropower Limited"}]
[]
["Emissions to Air (periodically monitored)"]
[]
["Summary of monitoring undertaken, standards used and compliance",null,null,null,null,null,null,null,null,null,"Notes:"]
["Samples taken as required by the new permit variation BREF BR4551IC version 12",null,null,null,null,null,null,null,null,null,"Template may require adjustment for any bespoke monitoring requirements of permit - please also check that all default ELV values, reference periods and the stated oxygen reference value match those for your plant, and edit if necessary!"]
[]
[]
["Results of emissions to air that are periodically monitored"]
["Substance",null,"Ref. Period","Emission Limit Value*",null,"Average",null,null,null,null,"User to add additional tables as necessary, depending on whether quarterly or bi-annual reporting is required for the compliance year"]
[null,null,null,null,null,"A1","A2","A3","A4","A5"]
["Cadmium & Thallium",null,"Average of three consecutive\nmeasurements of at\nleast 30 minutes each","0.05 mg/m3",null,1.9E-3,6.3999999999999994E-3,1.8999999999999998E-3]
["Heavy Metals",null,"Average of three consecutive\nmeasurements of at\nleast 30 minutes each","0.5 mg/m3",null,6.6000000000000003E-2,0.46350000000000002,6.0499999999999998E-2]
["Mercury",null,"Average of three consecutive\nmeasurements of at\nleast 30 minutes each","0.05 mg/m3",null,5.1500000000000005E-4,5.5500000000000005E-4,6.4999999999999997E-4,null,null,"* Denotes limits that were in force until 2 December 2023; from 3 December 2023 the following new limits applied (those not listed remained unchanged):"]
["Hydrogen Fluoride",null,"Average of three consecutive\nmeasurements of at\nleast 30 minutes each","2 mg/m3",null,3.8000000000000006E-2,3.7500000000000006E-2,3.85E-2]
["Dioxins / furans (I-TEQ)6",null,"Over period between 6 and 8 hours","0.1 µg/m3",null,3.85E-2,6.5000000000000002E-2,5.3000000000000005E-2,null,null,"Substance","Reference Period","Emission Limit Value"]
["Dioxins / furans (WHO-TEQ Humans / Mammals) 6",null,"Over period between 6 and 8 hours","None set µg/m3",null,3.6499999999999998E-2,6.4000000000000001E-2,5.5499999999999994E-2]
["Dioxins / furans (WHO-TEQ Fish) 6",null,"Over period between 6 and 8 hours","None set µg/m3",null,2.8499999999999998E-2,4.8000000000000001E-2,4.1500000000000002E-2,null,null,"Hydrogen fluoride","Average of three consecutive measurements of at least 30 minutes each","1 mg/m3"]
["Dioxins / furans (WHO-TEQ Birds) 6",null,"Over period between 6 and 8 hours","None set µg/m3",null,4.1000000000000002E-2,6.0499999999999998E-2,4.9000000000000002E-2,null,null,"Cd and Th and their compounds","Average of three consecutive measurements of at least 30 minutes each","0.02 mg/m3"]
["Dioxin-like PCBs (WHO-TEQ Humans / Mammals)6",null,"Over period between 6 and 8 hours","None set µg/m3",null,1.6150000000000001E-3,2.65E-3,1.75E-3,null,null,"Hg and its compounds","Average of three consecutive measurements of at least 30 minutes each","0.02 mg/m3"]
["Dioxin-like PCBs (WHO-TEQ Fish)6",null,"Over period between 6 and 8 hours","None set µg/m3",null,7.0000000000000007E-5,1.1399999999999999E-4,1.405E-2,null,null,"Sb, As, Pb, Cr, Co, Cu, Mn, Ni, V and their compounds","Average of three consecutive measurements of at least 30 minutes each","0.3 mg/m3"]
["Dioxin-like PCBs (WHO-TEQ Birds)6",null,"Over period between 6 and 8 hours","None set µg/m3",null,3.3499999999999997E-3,4.7499999999999999E-3,1.975E-2,null,null,"Dioxins & Furans (I-TEQ)","6-8hrs","0.06 ng/m3"]
["Brominated Dioxins &\nFurans (NATO I-TEQ)",null,"Over period between 6 and 8 hours","None set µg/m4",null,1.9E-3,2.2499999999999998E-3,2.0999999999999999E-3]
["PAHs (DEFRA 16)",null,"Over period between 6 and 8 hours","None set µg/m3",null,0.23,0.12,0.13]
["Anthanthrene",null,"Over period between 6 and 8 hours","None set µg/m3",null,1.5E-3,1.2999999999999999E-3,1.5E-3]
["Benzo{a}anthracene",null,"Over period between 6 and 8 hours","None set µg/m3",null,1.5E-3,1.2999999999999999E-3,1.5E-3]
["Benzo[b]fluoranthene",null,"Over period between 6 and 8 hours","None set µg/m3",null,1.5E-3,1.2999999999999999E-3,1.5E-3]
["Benzo[k]fluoranthene",null,"Over period between 6 and 8 hours","None set µg/m3",null,1.5E-3,1.2999999999999999E-3,1.5E-3]
["Benzo[b]naph(2,1-d}thiophene",null,"Over period between 6 and 8 hours","None set µg/m3",null,1.5E-3,1.2999999999999999E-3,1.5E-3]
["Benzo[c]phenanthrene",null,"Over period between 6 and 8 hours","None set µg/m3",null,1.5E-3,1.2999999999999999E-3,1.5E-3]
["Benzo[ghi]perylene",null,"Over period between 6 and 8 hours","None set µg/m3",null,3.5000000000000001E-3,1.2999999999999999E-3,1.5E-3]
["Benzo[a]pyrene",null,"Over period between 6 and 8 hours","None set µg/m3",null,1.5E-3,1.2999999999999999E-3,1.5E-3]
["Cholanthrene",null,"Over period between 6 and 8 hours","None set µg/m3",null,1.5E-3,1.2999999999999999E-3,1.5E-3]
["Chrysene",null,"Over period between 6 and 8 hours","None set µg/m3",null,1.5E-3,1.8E-3,1.5E-3]
["Cyclopenta(cd)pyrene",null,"Over period between 6 and 8 hours","None set µg/m3",null,1.5E-3,1.2999999999999999E-3,1.5E-3]
["Dibenzo[ah]anthracene",null,"Over period between 6 and 8 hours","None set µg/m3",null,1.5E-3,1.2999999999999999E-3,1.5E-3]
["Dibenzo[ai]pyrene",null,"Over period between 6 and 8 hours","None set µg/m3",null,1.5E-3,1.2999999999999999E-3,1.5E-3]
["Fluoranthene",null,"Over period between 6 and 8 hours","None set µg/m3",null,2.1999999999999999E-2,0.02,1.7000000000000001E-2]
["Indeno[1,2,3-cd]pyrene",null,"Over period between 6 and 8 hours","None set µg/m3",null,1.5E-3,1.2999999999999999E-3,1.5E-3]
["Naphthalene",null,"Over period between 6 and 8 hours","None set µg/m3",null,0.18,8.1000000000000003E-2,9.4E-2]
["Comments :"]
["All determinants passed periodic testing."]

{"sheet":"HCl","index":15,"n_rows":79,"n_cols":17,"rows_kept":79,"cut":false,"hidden":false,"merged":[[12,16,15,18],[51,9,63,9],[66,9,78,9],[4,9,4,14],[4,1,4,3],[4,4,4,6],[48,0,51,6],[47,0,47,6],[6,9,18,9],[21,9,33,9],[36,9,48,9],[3,16,7,18],[9,16,11,18],[18,4,18,6]]}
[{"$f":"+'Cover Page'!$B$29","v":"Annual Performance Report 2023"},null,null,null,{"$f":"+'Cover Page'!$B$33","v":"Kent Enviropower Limited"}]
[]
["Monitoring of Hydrogen Chloride emissions",null,null,"Whole Installation",null,null,"See  Notes in Cell Q3",null,null,{"$f":"+A3","v":"Monitoring of Hydrogen Chloride emissions"},null,null,null,"Per Combustion Line",null,null,"Notes:"]
[null,null,null,null,null,null,null,null,null,null,null,null,null,null,null,null,"User to add logic to complete Whole installation, Table A5:G18. From the data in Per Combustion Line, Table J6:O79, subject to No. of lines installed"]
["mg/Nm3","1/2 Hourly Reference Periods",null,null,"Daily Reference Periods"]
[{"$f":"+'Cover Page'!C39","v":2023},"1/2 hourly HCl ELV","Monthly 1/2 hourly mean","Highest 1/2 hourly maximum","Daily HCl ELV*","Monthly daily mean","Highest daily maximum",null,null,{"$f":"+A6","v":2023},"mg/Nm3","Monthly 1/2 hourly mean","Monthly 1/2 hourly maximum","Monthly daily mean","Monthly daily maximum"]
["Jan",60,{"$f":"AVERAGE(L7,L22,L37)","v":1.8173889303583397},{"$f":"MAX(M7,M22,M37)","v":14.805866241455},10,{"$f":"AVERAGE(N7,N22,N37)","v":2.0817766896947738},{"$f":"MAX(O7,O22,O37)","v":3.5136399269104004},null,null,"A1","Jan",0.375923268537047,14.805866241455,1.144141361117363,0.82924097776412897]
["Feb",60,{"$f":"AVERAGE(L8,L23,L38)","v":2.5721111679104451},{"$f":"MAX(M8,M23,M38)","v":15.277179718017578},10,{"$f":"AVERAGE(N8,N23,N38)","v":2.5801209259532309},{"$f":"MAX(O8,O23,O38)","v":3.938525915145874},null,null,null,"Feb",1.6055174068556175,15.277179718017578,1.5666295621130202,3.1144599914550781]
["Mar",60,2.9498174429011663,9.2708091735839844,10,2.0841960851792933,3.9624049663543701,null,null,null,"Mar",2.674579868191167,9.2708091735839844,0,0,null,"Whole Installation table A5:G18:"]
["Apr",60,3.4914810587483331,9.6815767288208008,10,3.5015681512174552,5.2762579917907715,null,null,null,"Apr",2.42324437186649,8.235590934753418,2.4535054784072075,2.9022738933563232,null,"Mean: for 1/2 hourly and daily periods calculate mean of values across all operational combustion lines for the month"]
["May",60,4.0502203474198994,16.190004348754883,10,4.052114351419565,5.5290369987487793,null,null,null,"May",3.388264059219309,10.764421463012695,3.3882640792477514,5.4714598655700684]
["Jun",60,3.5911614664093428,10.279516220092773,10,3.6293803073124269,5.2463679313659668,null,null,null,"Jun",3.1280705852028357,9.7777881622314453,3.1752453125440159,5.2463679313659668]
["Jul",60,3.461076773459252,7.5877127647399902,10,3.4752651116540356,5.2070808410644531,null,null,null,"Jul",2.2874967178565164,4.6907439231872559,2.3300615847110748,3.3115708827972412,null,"Maximum: for 1/2 hourly and daily periods use the highest value across all operational combustion lines for the month"]
["Aug",60,3.4114434306491304,24.216268539428711,10,3.3768438581924713,5.3228387832641602,null,null,null,"Aug",2.106730342069,24.216268539428711,2.0029316584269208,3.0153689384460449]
["Sep",60,2.9763651453250048,6.9229340553283691,10,2.9651245881354025,4.4675731658935547,null,null,null,"Sep",1.9255890055873972,5.851902961730957,1.865053496577523,2.7828829288482666]
["Oct",60,2.7738640649725954,46.086284637451172,10,2.7550536570929904,4.990839958190918,null,null,null,"Oct",1.8510167630930476,26.618011474609375,1.8119937915068407,4.9370708465576172]
["Nov",60,2.1883908400768983,13.404243469238281,10,2.2234404928154414,3.8203489780426025,null,null,null,"Nov",1.2413798759380976,13.404243469238281,1.241379870971044,2.2061409950256348]
["Dec",60,4.0334170945421137,12.276932716369629,8,4.0627051736082764,6.9069390296936035,null,null,null,"Dec",3.2239958133788837,12.276932716369629,3.2239958201685259,6.9069390296936035]
[null,null,null,null,"* ELV reduced to 8 mg/Nm3 on 3 December 2023",null,null,null,null,null,"Annual",{"$f":"AVERAGE(L7:L18)","v":2.1859840064829505},{"$f":"MAX(M7:M18)","v":26.618011474609375},{"$f":"AVERAGE(N7:N18)","v":2.0169335013159406},{"$f":"MAX(O7:O18)","v":6.9069390296936035}]
[]
[null,null,null,null,null,null,null,null,null,{"$f":"+A6","v":2023},"mg/Nm3","Monthly 1/2 hourly mean","Monthly 1/2 hourly maximum","Monthly daily mean","Monthly daily maximum"]
[null,null,null,null,null,null,null,null,null,"A2","Jan",2.4910556212859123,7.0019102096557617,2.5160007190704348,2.9315650463104248]
[null,null,null,null,null,null,null,null,null,null,"Feb",3.1505412181929859,9.421656608581543,3.1971961021423341,3.8908660411834717]
[null,null,null,null,null,null,null,null,null,null,"Mar",3.0949556018945534,6.5064549446105957,3.1264226171705456,3.6274690628051758]
[null,null,null,null,null,null,null,null,null,null,"Apr",4.264644682572948,9.6815767288208008,4.2646447658538822,5.2762579917907715]
[null,null,null,null,null,null,null,null,null,null,"May",4.6415015066503198,16.190004348754883,4.6415015420606061,5.5290369987487793]
[null,null,null,null,null,null,null,null,null,null,"Jun",3.622117420442343,9.0731115341186523,3.6760262901132759,4.5626339912414551]
[null,null,null,null,null,null,null,null,null,null,"Jul",3.8135400802217503,6.9887690544128418,3.8135402279515422,4.8959941864013672]
[null,null,null,null,null,null,null,null,null,null,"Aug",3.9530236259583504,9.0902862548828125,3.9530235875037407,4.6889019012451172]
[null,null,null,null,null,null,null,null,null,null,"Sep",3.5104869538224963,6.9229340553283691,3.5313221878475614,4.1618618965148926]
[null,null,null,null,null,null,null,null,null,null,"Oct",3.483535835657261,12.279593467712402,3.4859259379537484,4.990839958190918]
[null,null,null,null,null,null,null,null,null,null,"Nov",2.8673426131848934,7.0577101707458496,2.8780596256256104,3.8203489780426025]
[null,null,null,null,null,null,null,null,null,null,"Dec",4.3703072505639797,9.4780969619750977,4.3704375151930188,6.2118048667907715]
[null,null,null,null,null,null,null,null,null,null,"Annual",{"$f":"AVERAGE(L22:L33)","v":3.6052543675373165},{"$f":"MAX(M22:M33)","v":16.190004348754883},{"$f":"AVERAGE(N22:N33)","v":3.6211750932071909},{"$f":"MAX(O22:O33)","v":6.2118048667907715}]
[]
[null,null,null,null,null,null,null,null,null,{"$f":"+A6","v":2023},"mg/Nm3","Monthly 1/2 hourly mean","Monthly 1/2 hourly maximum","Monthly daily mean","Monthly daily maximum"]
[null,null,null,null,null,null,null,null,null,"A3","Jan",2.5851879012520596,6.4820570945739746,2.5851879888965237,3.5136399269104004]
[null,null,null,null,null,null,null,null,null,null,"Feb",2.960274878682732,7.6423091888427734,2.9765371136043384,3.938525915145874]
[null,null,null,null,null,null,null,null,null,null,"Mar",3.0799168586177781,8.6609592437744141,3.1261656383673349,3.9624049663543701]
[null,null,null,null,null,null,null,null,null,null,"Apr",3.7865541218055618,8.4986257553100586,3.7865542093912761,4.5553398132324219]
[null,null,null,null,null,null,null,null,null,null,"May",4.1208954763900705,10.512733459472656,4.126577432950338,5.2168288230895996]
[null,null,null,null,null,null,null,null,null,null,"Jun",4.0232963935828501,10.279516220092773,4.0368693192799885,4.7271971702575684]
[null,null,null,null,null,null,null,null,null,null,"Jul",4.2821935222994894,7.5877127647399902,4.2821935222994894,5.2070808410644531]
[null,null,null,null,null,null,null,null,null,null,"Aug",4.1745763239200393,7.2977018356323242,4.1745763286467525,5.3228387832641602]
[null,null,null,null,null,null,null,null,null,null,"Sep",3.4930194765651201,6.7198200225830078,3.4989980799811229,4.4675731658935547]
[null,null,null,null,null,null,null,null,null,null,"Oct",2.9870395961674778,46.086284637451172,2.9672412418183827,3.6893289089202881]
[null,null,null,null,null,null,null,null,null,null,"Nov",2.4564500311077042,3.4497389793395996,2.5508819818496704,2.6833019256591797]
["Comments :",null,null,null,null,null,null,null,null,null,"Dec",4.5059482196834795,10.725339889526367,4.5936821854632832,6.0097599029541016]
[null,null,null,null,null,null,null,null,null,null,"Annual",{"$f":"AVERAGE(L37:L48)","v":3.5379460666728644},{"$f":"MAX(M37:M48)","v":46.086284637451172},{"$f":"AVERAGE(N37:N48)","v":3.5587887535457079},{"$f":"MAX(O37:O48)","v":6.0097599029541016}]
[]
[null,null,null,null,null,null,null,null,null,{"$f":"+A6","v":2023},"mg/Nm3","Monthly 1/2 hourly mean","Monthly 1/2 hourly maximum","Monthly daily mean","Monthly daily maximum"]
[null,null,null,null,null,null,null,null,null,"A4","Jan"]
[null,null,null,null,null,null,null,null,null,null,"Feb"]
[null,null,null,null,null,null,null,null,null,null,"Mar"]
[null,null,null,null,null,null,null,null,null,null,"Apr"]
[null,null,null,null,null,null,null,null,null,null,"May"]
[null,null,null,null,null,null,null,null,null,null,"Jun"]
[null,null,null,null,null,null,null,null,null,null,"Jul"]
[null,null,null,null,null,null,null,null,null,null,"Aug"]
[null,null,null,null,null,null,null,null,null,null,"Sep"]
[null,null,null,null,null,null,null,null,null,null,"Oct"]
[null,null,null,null,null,null,null,null,null,null,"Nov"]
[null,null,null,null,null,null,null,null,null,null,"Dec"]
[null,null,null,null,null,null,null,null,null,null,"Annual",{"$f":"AVERAGE(L52:L63)","v":{"$error":"#DIV/0!"}},{"$f":"MAX(M52:M63)","v":0},{"$f":"AVERAGE(N52:N63)","v":{"$error":"#DIV/0!"}},{"$f":"MAX(O52:O63)","v":0}]
[]
[null,null,null,null,null,null,null,null,null,{"$f":"+A6","v":2023},"mg/Nm3","Monthly 1/2 hourly mean","Monthly 1/2 hourly maximum","Monthly daily mean","Monthly daily maximum"]
[null,null,null,null,null,null,null,null,null,"A5","Jan"]
[null,null,null,null,null,null,null,null,null,null,"Feb"]
[null,null,null,null,null,null,null,null,null,null,"Mar"]
[null,null,null,null,null,null,null,null,null,null,"Apr"]
[null,null,null,null,null,null,null,null,null,null,"May"]
[null,null,null,null,null,null,null,null,null,null,"Jun"]
[null,null,null,null,null,null,null,null,null,null,"Jul"]
[null,null,null,null,null,null,null,null,null,null,"Aug"]
[null,null,null,null,null,null,null,null,null,null,"Sep"]
[null,null,null,null,null,null,null,null,null,null,"Oct"]
[null,null,null,null,null,null,null,null,null,null,"Nov"]
[null,null,null,null,null,null,null,null,null,null,"Dec"]
[null,null,null,null,null,null,null,null,null,null,"Annual",{"$f":"AVERAGE(L67:L78)","v":{"$error":"#DIV/0!"}},{"$f":"MAX(M67:M78)","v":0},{"$f":"AVERAGE(N67:N78)","v":{"$error":"#DIV/0!"}},{"$f":"MAX(O67:O78)","v":0}]

{"sheet":"SO2","index":16,"n_rows":79,"n_cols":17,"rows_kept":79,"cut":false,"hidden":false,"merged":[[3,16,7,18],[9,16,11,18],[12,16,15,18],[66,9,78,9],[4,1,4,3],[4,4,4,6],[4,9,4,14],[6,9,18,9],[21,9,33,9],[36,9,48,9],[47,0,47,6],[48,0,51,6],[51,9,63,9],[18,4,18,6]]}
[{"$f":"+'Cover Page'!$B$29","v":"Annual Performance Report 2023"},null,null,null,{"$f":"+'Cover Page'!$B$33","v":"Kent Enviropower Limited"}]
[]
["Monitoring of Sulphur dioxide emissions",null,null,"Whole Installation",null,null,"See  Notes in Cell Q3",null,null,{"$f":"+A3","v":"Monitoring of Sulphur dioxide emissions"},null,null,null,"Per Combustion Line",null,null,"Notes:"]
[null,null,null,null,null,null,null,null,null,null,null,null,null,null,null,null,"User to add logic to complete Whole installation, Table A5:G18. From the data in Per Combustion Line, Table J6:O79, subject to No. of lines installed"]
["mg/Nm3","1/2 Hourly Reference Periods",null,null,"Daily Reference Periods"]
[{"$f":"+'Cover Page'!C39","v":2023},"1/2 hourly SO2 ELV","Monthly 1/2 hourly mean","Highest 1/2 hourly maximum","Daily SO2 ELV*","Monthly daily mean","Highest daily maximum",null,null,{"$f":"+A6","v":2023},"mg/Nm3","Monthly 1/2 hourly mean","Monthly 1/2 hourly maximum","Monthly daily mean","Monthly daily maximum"]
["Jan",200,{"$f":"AVERAGE(L7,L22,L37)","v":0.39927328049790195},{"$f":"MAX(M7,M22,M37)","v":39.608631134033203},50,{"$f":"AVERAGE(N7,N22,N37)","v":0.37020002535831287},{"$f":"MAX(O7,O22,O37)","v":1.485901951789856},null,null,"A1","Jan",0.10229267188586308,39.608631134033203,5.5701214447513588E-2,0.30572399497032166]
["Feb",200,{"$f":"AVERAGE(L8,L23,L38)","v":0.53627493709829854},{"$f":"MAX(M8,M23,M38)","v":62.482345581054688},50,{"$f":"AVERAGE(N8,N23,N38)","v":0.53333958007051241},{"$f":"MAX(O8,O23,O38)","v":1.9697849750518799},null,null,null,"Feb",0.34794253874521952,49.611423492431641,0.33918481572106463,1.8648589849472046]
["Mar",200,0.49997031651115603,62.609672546386719,50,0.47452873231866111,1.8688230514526367,null,null,null,"Mar",0.11319851314903262,5.9205060005187988,0,0,null,"Whole Installation table A5:G18:"]
["Apr",200,0.49212284669338385,29.890153884887695,50,0.49398176782051023,1.7856060266494751,null,null,null,"Apr",0.24752826245094572,13.23738956451416,0.25310510534204933,0.67550897598266602,null,"Mean: for 1/2 hourly and daily periods calculate mean of values across all operational combustion lines for the month"]
["May",200,0.54350070255149718,41.394134521484375,50,0.54243569242697898,1.5969630479812622,null,null,null,"May",0.45839906380626261,41.394134521484375,0.45840325783337316,1.5969630479812622]
["Jun",200,0.53301794648829592,55.829559326171875,50,0.52175365072134494,2.5012280941009521,null,null,null,"Jun",0.48468043723087045,7.1420960426330566,0.48237891982381159,0.82873797416687012]
["Jul",200,0.54587315541786663,24.196884155273438,50,0.54844455976960482,1.4071029424667358,null,null,null,"Jul",0.62019599000335845,24.196884155273438,0.62791045308113103,1.4071029424667358,null,"Maximum: for 1/2 hourly and daily periods use the highest value across all operational combustion lines for the month"]
["Aug",200,0.61752616751170297,102.40507507324219,50,0.55856414000941002,1.5160800218582153,null,null,null,"Aug",0.85141331506093065,102.40507507324219,0.67452487150828044,1.2476040124893188]
["Sep",200,0.88019753758631714,51.647724151611328,50,0.87144462733652095,2.2833089828491211,null,null,null,"Sep",1.4517369982638177,23.718639373779297,1.4268225932663137,2.2833089828491211]
["Oct",200,0.7781734183816239,166.16549682617188,50,0.69842600608150585,3.4514269828796387,null,null,null,"Oct",1.1225369553151523,63.73040771484375,1.0396997268096759,3.4514269828796387]
["Nov",200,0.52040778046918168,13.59127140045166,50,0.49404964654240757,2.9371259212493896,null,null,null,"Nov",0.65566280348869488,8.1809215545654297,0.65566276436826831,2.9371259212493896]
["Dec",200,0.46535089555973402,16.216440200805664,40,0.4658033668247939,2.8928549289703369,null,null,null,"Dec",0.81758112342228539,16.216440200805664,0.81758099514615512,2.8928549289703369]
[null,null,null,null,"* ELV reduced to 40 mg/Nm3 on 3 December 2023",null,null,null,null,null,"Annual",{"$f":"AVERAGE(L7:L18)","v":0.60609738940186941},{"$f":"MAX(M7:M18)","v":102.40507507324219},{"$f":"AVERAGE(N7:N18)","v":0.56924789311230317},{"$f":"MAX(O7:O18)","v":3.4514269828796387}]
[]
[null,null,null,null,null,null,null,null,null,{"$f":"+A6","v":2023},"mg/Nm3","Monthly 1/2 hourly mean","Monthly 1/2 hourly maximum","Monthly daily mean","Monthly daily maximum"]
[null,null,null,null,null,null,null,null,null,"A2","Jan",0.79326981223483006,23.911121368408203,0.75264147520065305,1.485901951789856]
[null,null,null,null,null,null,null,null,null,null,"Feb",0.78631063260118983,62.482345581054688,0.78187127113342281,1.9697849750518799]
[null,null,null,null,null,null,null,null,null,null,"Mar",0.87161215839424333,20.250019073486328,0.87458086455309836,1.8688230514526367]
[null,null,null,null,null,null,null,null,null,null,"Apr",0.6919771074472616,18.762006759643555,0.69197706083456678,1.230010986328125]
[null,null,null,null,null,null,null,null,null,null,"May",0.69094103466599222,23.457054138183594,0.69094675106386982,1.353018045425415]
[null,null,null,null,null,null,null,null,null,null,"Jun",0.84192240120722617,55.829559326171875,0.84071136469190766,2.5012280941009521]
[null,null,null,null,null,null,null,null,null,null,"Jul",0.74817274999053729,23.077754974365234,0.74817264656866755,1.2406940460205078]
[null,null,null,null,null,null,null,null,null,null,"Aug",0.64578815149043201,14.065361976623535,0.64579051540743915,1.3871419429779053]
[null,null,null,null,null,null,null,null,null,null,"Sep",0.78284553345086916,22.00335693359375,0.79312918473173066,1.7234410047531128]
[null,null,null,null,null,null,null,null,null,null,"Oct",0.58710299084163875,19.608484268188477,0.58833210562404836,0.83896702527999878]
[null,null,null,null,null,null,null,null,null,null,"Nov",0.42614968840722683,12.040069580078125,0.42664966483910877,0.79914200305938721]
[null,null,null,null,null,null,null,null,null,null,"Dec",0.36228625594724156,8.8421688079833984,0.36369575765626183,0.6370999813079834]
[null,null,null,null,null,null,null,null,null,null,"Annual",{"$f":"AVERAGE(L22:L33)","v":0.68569820972322415},{"$f":"MAX(M22:M33)","v":62.482345581054688},{"$f":"AVERAGE(N22:N33)","v":0.68320822185873109},{"$f":"MAX(O22:O33)","v":2.5012280941009521}]
[]
[null,null,null,null,null,null,null,null,null,{"$f":"+A6","v":2023},"mg/Nm3","Monthly 1/2 hourly mean","Monthly 1/2 hourly maximum","Monthly daily mean","Monthly daily maximum"]
[null,null,null,null,null,null,null,null,null,"A3","Jan",0.30225735737301251,20.612428665161133,0.30225738642677186,0.7838979959487915]
[null,null,null,null,null,null,null,null,null,null,"Feb",0.47457163994848622,13.872382164001465,0.47896265335704968,0.91925901174545288]
[null,null,null,null,null,null,null,null,null,null,"Mar",0.51510027799019209,62.609672546386719,0.54900533240288496,1.8606899976730347]
[null,null,null,null,null,null,null,null,null,null,"Apr",0.53686317018194429,29.890153884887695,0.53686313728491464,1.7856060266494751]
[null,null,null,null,null,null,null,null,null,null,"May",0.48116200918223673,33.605037689208984,0.47795706838369367,1.4902420043945313]
[null,null,null,null,null,null,null,null,null,null,"Jun",0.27245100102679126,14.777932167053223,0.24217066764831544,0.37947401404380798]
[null,null,null,null,null,null,null,null,null,null,"Jul",0.26925072625970409,18.581920623779297,0.26925057965901589,0.81946098804473877]
[null,null,null,null,null,null,null,null,null,null,"Aug",0.3553770359837462,41.687538146972656,0.35537703311251057,1.5160800218582153]
[null,null,null,null,null,null,null,null,null,null,"Sep",0.4060100810442645,51.647724151611328,0.39438210401151863,1.8551859855651855]
[null,null,null,null,null,null,null,null,null,null,"Oct",0.62488030898808078,166.16549682617188,0.46724618581079302,1.4630069732666016]
[null,null,null,null,null,null,null,null,null,null,"Nov",0.47941084951162338,13.59127140045166,0.39983651041984558,0.64239102602005005]
["Comments :",null,null,null,null,null,null,null,null,null,"Dec",0.21618530730967506,11.270382881164551,0.2161333476719649,0.3943609893321991]
[null,null,null,null,null,null,null,null,null,null,"Annual",{"$f":"AVERAGE(L37:L48)","v":0.41112664706664637},{"$f":"MAX(M37:M48)","v":166.16549682617188},{"$f":"AVERAGE(N37:N48)","v":0.39078683384910656},{"$f":"MAX(O37:O48)","v":1.8606899976730347}]
[]
[null,null,null,null,null,null,null,null,null,{"$f":"+A6","v":2023},"mg/Nm3","Monthly 1/2 hourly mean","Monthly 1/2 hourly maximum","Monthly daily mean","Monthly daily maximum"]
[null,null,null,null,null,null,null,null,null,"A4","Jan"]
[null,null,null,null,null,null,null,null,null,null,"Feb"]
[null,null,null,null,null,null,null,null,null,null,"Mar"]
[null,null,null,null,null,null,null,null,null,null,"Apr"]
[null,null,null,null,null,null,null,null,null,null,"May"]
[null,null,null,null,null,null,null,null,null,null,"Jun"]
[null,null,null,null,null,null,null,null,null,null,"Jul"]
[null,null,null,null,null,null,null,null,null,null,"Aug"]
[null,null,null,null,null,null,null,null,null,null,"Sep"]
[null,null,null,null,null,null,null,null,null,null,"Oct"]
[null,null,null,null,null,null,null,null,null,null,"Nov"]
[null,null,null,null,null,null,null,null,null,null,"Dec"]
[null,null,null,null,null,null,null,null,null,null,"Annual",{"$f":"AVERAGE(L52:L63)","v":{"$error":"#DIV/0!"}},{"$f":"MAX(M52:M63)","v":0},{"$f":"AVERAGE(N52:N63)","v":{"$error":"#DIV/0!"}},{"$f":"MAX(O52:O63)","v":0}]
[]
[null,null,null,null,null,null,null,null,null,{"$f":"+A6","v":2023},"mg/Nm3","Monthly 1/2 hourly mean","Monthly 1/2 hourly maximum","Monthly daily mean","Monthly daily maximum"]
[null,null,null,null,null,null,null,null,null,"A5","Jan"]
[null,null,null,null,null,null,null,null,null,null,"Feb"]
[null,null,null,null,null,null,null,null,null,null,"Mar"]
[null,null,null,null,null,null,null,null,null,null,"Apr"]
[null,null,null,null,null,null,null,null,null,null,"May"]
[null,null,null,null,null,null,null,null,null,null,"Jun"]
[null,null,null,null,null,null,null,null,null,null,"Jul"]
[null,null,null,null,null,null,null,null,null,null,"Aug"]
[null,null,null,null,null,null,null,null,null,null,"Sep"]
[null,null,null,null,null,null,null,null,null,null,"Oct"]
[null,null,null,null,null,null,null,null,null,null,"Nov"]
[null,null,null,null,null,null,null,null,null,null,"Dec"]
[null,null,null,null,null,null,null,null,null,null,"Annual",{"$f":"AVERAGE(L67:L78)","v":{"$error":"#DIV/0!"}},{"$f":"MAX(M67:M78)","v":0},{"$f":"AVERAGE(N67:N78)","v":{"$error":"#DIV/0!"}},{"$f":"MAX(O67:O78)","v":0}]

{"sheet":"NOx","index":17,"n_rows":79,"n_cols":17,"rows_kept":79,"cut":false,"hidden":false,"merged":[[3,16,7,18],[9,16,11,18],[12,16,15,18],[66,9,78,9],[4,1,4,3],[4,4,4,6],[4,9,4,14],[6,9,18,9],[21,9,33,9],[36,9,48,9],[47,0,47,6],[48,0,51,6],[51,9,63,9],[18,4,18,6]]}
[{"$f":"+'Cover Page'!$B$29","v":"Annual Performance Report 2023"},null,null,null,{"$f":"+'Cover Page'!$B$33","v":"Kent Enviropower Limited"}]
[]
["Monitoring of Oxides of Nitrogen emissions",null,null,"Whole Installation",null,null,"See  Notes in Cell Q3",null,null,{"$f":"+A3","v":"Monitoring of Oxides of Nitrogen emissions"},null,null,null,"Per Combustion Line",null,null,"Notes:"]
[null,null,null,null,null,null,null,null,null,null,null,null,null,null,null,null,"User to add logic to complete Whole installation, Table A5:G18. From the data in Per Combustion Line, Table J6:O79, subject to No. of lines installed"]
["mg/Nm3","1/2 Hourly Reference Periods",null,null,"Daily Reference Periods"]
[{"$f":"+'Cover Page'!C39","v":2023},"1/2 hourly NOx ELV","Monthly 1/2 hourly mean","Highest 1/2 hourly maximum","Daily NOx ELV*","Monthly daily mean","Highest daily maximum",null,null,{"$f":"+A6","v":2023},"mg/Nm3","Monthly 1/2 hourly mean","Monthly 1/2 hourly maximum","Monthly daily mean","Monthly daily maximum"]
["Jan",400,{"$f":"AVERAGE(L7,L22,L37)","v":128.48109315621448},{"$f":"MAX(M7,M22,M37)","v":320.99960327148438},200,{"$f":"AVERAGE(N7,N22,N37)","v":128.34205696609897},{"$f":"MAX(O7,O22,O37)","v":160.17864990234375},null,null,"A1","Jan",133.11647735606849,304.66055297851563,133.05680356706893,154.3902587890625]
["Feb",400,{"$f":"AVERAGE(L8,L23,L38)","v":120.45868142065844},{"$f":"MAX(M8,M23,M38)","v":291.00698852539063},200,{"$f":"AVERAGE(N8,N23,N38)","v":120.22843735633968},{"$f":"MAX(O8,O23,O38)","v":161.71026611328125},null,null,null,"Feb",138.53779392414265,291.00698852539063,138.37093211986399,161.71026611328125]
["Mar",400,126.130267689619,336.24319458007813,200,76.826369214940954,150.55560302734375,null,null,null,"Mar",148.35420176857397,336.24319458007813,0,0,null,"Whole Installation table A5:G18:"]
["Apr",400,115.90884365852894,213.77674865722656,200,115.69906464069209,152.63475036621094,null,null,null,"Apr",113.07897072615219,213.77674865722656,112.44963354813426,133.41935729980469,null,"Mean: for 1/2 hourly and daily periods calculate mean of values across all operational combustion lines for the month"]
["May",400,121.16610728364454,295.9251708984375,200,121.07739215973885,154.88961791992188,null,null,null,"May",116.03146832476381,295.9251708984375,116.03146756079889,136.85417175292969]
["Jun",400,136.15086176295051,311.53021240234375,200,135.47853794053441,165.86648559570313,null,null,null,"Jun",133.67996094321757,299.29525756835938,133.55598479050857,146.22673034667969]
["Jul",400,139.47608774351025,299.30783081054688,200,139.42245295945034,170.04701232910156,null,null,null,"Jul",126.19904697279972,232.98519897460938,126.03814430236817,144.44680786132813,null,"Maximum: for 1/2 hourly and daily periods use the highest value across all operational combustion lines for the month"]
["Aug",400,139.71647613599399,383.53778076171875,200,139.11130681191722,165.02229309082031,null,null,null,"Aug",127.9111970669378,383.53778076171875,126.09568939208984,149.20500183105469]
["Sep",400,118.20500060431874,330.17120361328125,200,117.57017897213997,152.9573974609375,null,null,null,"Sep",103.30433923879247,330.17120361328125,101.40126800537109,119.88946533203125]
["Oct",400,120.47929576018551,266.73931884765625,200,120.57408242623701,159.72836303710938,null,null,null,"Oct",105.90690851174207,266.73931884765625,105.04190973135141,135.08882141113281]
["Nov",400,122.78764968861482,476.520751953125,200,119.29002586647316,161.01681518554688,null,null,null,"Nov",121.50061008665297,259.54278564453125,121.50061060587565,134.58952331542969]
["Dec",400,122.51516474134037,211.25679016113281,180,122.744772334833,161.29202270507813,null,null,null,"Dec",112.64432185696018,211.25679016113281,112.64432131859564,133.99636840820313]
[null,null,null,null,"* ELV reduced to 180 mg/Nm3 on 3 December 2023",null,null,null,null,null,"Annual",{"$f":"AVERAGE(L7:L18)","v":123.35544139806699},{"$f":"MAX(M7:M18)","v":383.53778076171875},{"$f":"AVERAGE(N7:N18)","v":110.51556374516888},{"$f":"MAX(O7:O18)","v":161.71026611328125}]
[]
[null,null,null,null,null,null,null,null,null,{"$f":"+A6","v":2023},"mg/Nm3","Monthly 1/2 hourly mean","Monthly 1/2 hourly maximum","Monthly daily mean","Monthly daily maximum"]
[null,null,null,null,null,null,null,null,null,"A2","Jan",135.1448616339116,320.99960327148438,134.78742645263671,160.17864990234375]
[null,null,null,null,null,null,null,null,null,null,"Feb",116.52676575019231,190.76060485839844,115.84908905029297,134.72959899902344]
[null,null,null,null,null,null,null,null,null,null,"Mar",123.22940342855486,306.2425537109375,122.91238318549262,150.55560302734375]
[null,null,null,null,null,null,null,null,null,null,"Apr",134.71952346165975,184.40936279296875,134.71952311197916,152.63475036621094]
[null,null,null,null,null,null,null,null,null,null,"May",141.09946767232751,208.45941162109375,141.09946761592741,154.88961791992188]
[null,null,null,null,null,null,null,null,null,null,"Jun",152.38563228434859,311.53021240234375,152.34762677279386,165.86648559570313]
[null,null,null,null,null,null,null,null,null,null,"Jul",152.51518857607277,299.30783081054688,152.51518692508822,165.61076354980469]
[null,null,null,null,null,null,null,null,null,null,"Aug",151.93312649573051,288.35748291015625,151.93312614194809,162.80302429199219]
[null,null,null,null,null,null,null,null,null,null,"Sep",139.34668810963191,187.9827880859375,139.36633187753182,152.9573974609375]
[null,null,null,null,null,null,null,null,null,null,"Oct",134.14529743960745,204.66471862792969,134.02592950118216,158.97404479980469]
[null,null,null,null,null,null,null,null,null,null,"Nov",144.67966091014722,476.520751953125,144.90292951795789,161.01681518554688]
[null,null,null,null,null,null,null,null,null,null,"Dec",146.57975297752,200.45323181152344,146.53296529835669,161.29202270507813]
[null,null,null,null,null,null,null,null,null,null,"Annual",{"$f":"AVERAGE(L22:L33)","v":139.35878072830872},{"$f":"MAX(M22:M33)","v":476.520751953125},{"$f":"AVERAGE(N22:N33)","v":139.24933212093228},{"$f":"MAX(O22:O33)","v":165.86648559570313}]
[]
[null,null,null,null,null,null,null,null,null,{"$f":"+A6","v":2023},"mg/Nm3","Monthly 1/2 hourly mean","Monthly 1/2 hourly maximum","Monthly daily mean","Monthly daily maximum"]
[null,null,null,null,null,null,null,null,null,"A3","Jan",117.18194047866329,299.40142822265625,117.18194087859123,141.65434265136719]
[null,null,null,null,null,null,null,null,null,null,"Feb",106.31148458764036,160.00860595703125,106.46529089886209,126.47893524169922]
[null,null,null,null,null,null,null,null,null,null,"Mar",106.80719787172818,172.1199951171875,107.56672445933025,125.94377136230469]
[null,null,null,null,null,null,null,null,null,null,"Apr",99.928036787774829,199.65242004394531,99.928037261962885,114.43807983398438]
[null,null,null,null,null,null,null,null,null,null,"May",106.36738585384225,189.43968200683594,106.10124130249024,122.91640472412109]
[null,null,null,null,null,null,null,null,null,null,"Jun",122.38699206128533,202.78131103515625,120.53200225830078,161.57781982421875]
[null,null,null,null,null,null,null,null,null,null,"Jul",139.71402768165834,225.178955078125,139.71402765089465,170.04701232910156]
[null,null,null,null,null,null,null,null,null,null,"Aug",139.30510484531362,261.31170654296875,139.30510490171372,165.02229309082031]
[null,null,null,null,null,null,null,null,null,null,"Sep",111.96397446453184,186.10336303710938,111.94293703351703,139.52947998046875]
[null,null,null,null,null,null,null,null,null,null,"Oct",121.38568132920699,187.09197998046875,122.65440804617745,159.72836303710938]
[null,null,null,null,null,null,null,null,null,null,"Nov",102.18267806904429,184.93743896484375,91.466537475585938,92.926094055175781]
["Comments :",null,null,null,null,null,null,null,null,null,"Dec",108.32141938954096,179.49630737304688,109.0570303875467,135.38352966308594]
[null,null,null,null,null,null,null,null,null,null,"Annual",{"$f":"AVERAGE(L37:L48)","v":115.15466028501919},{"$f":"MAX(M37:M48)","v":299.40142822265625},{"$f":"AVERAGE(N37:N48)","v":114.32627354624775},{"$f":"MAX(O37:O48)","v":170.04701232910156}]
[]
[null,null,null,null,null,null,null,null,null,{"$f":"+A6","v":2023},"mg/Nm3","Monthly 1/2 hourly mean","Monthly 1/2 hourly maximum","Monthly daily mean","Monthly daily maximum"]
[null,null,null,null,null,null,null,null,null,"A4","Jan"]
[null,null,null,null,null,null,null,null,null,null,"Feb"]
[null,null,null,null,null,null,null,null,null,null,"Mar"]
[null,null,null,null,null,null,null,null,null,null,"Apr"]
[null,null,null,null,null,null,null,null,null,null,"May"]
[null,null,null,null,null,null,null,null,null,null,"Jun"]
[null,null,null,null,null,null,null,null,null,null,"Jul"]
[null,null,null,null,null,null,null,null,null,null,"Aug"]
[null,null,null,null,null,null,null,null,null,null,"Sep"]
[null,null,null,null,null,null,null,null,null,null,"Oct"]
[null,null,null,null,null,null,null,null,null,null,"Nov"]
[null,null,null,null,null,null,null,null,null,null,"Dec"]
[null,null,null,null,null,null,null,null,null,null,"Annual",{"$f":"AVERAGE(L52:L63)","v":{"$error":"#DIV/0!"}},{"$f":"MAX(M52:M63)","v":0},{"$f":"AVERAGE(N52:N63)","v":{"$error":"#DIV/0!"}},{"$f":"MAX(O52:O63)","v":0}]
[]
[null,null,null,null,null,null,null,null,null,{"$f":"+A6","v":2023},"mg/Nm3","Monthly 1/2 hourly mean","Monthly 1/2 hourly maximum","Monthly daily mean","Monthly daily maximum"]
[null,null,null,null,null,null,null,null,null,"A5","Jan"]
[null,null,null,null,null,null,null,null,null,null,"Feb"]
[null,null,null,null,null,null,null,null,null,null,"Mar"]
[null,null,null,null,null,null,null,null,null,null,"Apr"]
[null,null,null,null,null,null,null,null,null,null,"May"]
[null,null,null,null,null,null,null,null,null,null,"Jun"]
[null,null,null,null,null,null,null,null,null,null,"Jul"]
[null,null,null,null,null,null,null,null,null,null,"Aug"]
[null,null,null,null,null,null,null,null,null,null,"Sep"]
[null,null,null,null,null,null,null,null,null,null,"Oct"]
[null,null,null,null,null,null,null,null,null,null,"Nov"]
[null,null,null,null,null,null,null,null,null,null,"Dec"]
[null,null,null,null,null,null,null,null,null,null,"Annual",{"$f":"AVERAGE(L67:L78)","v":{"$error":"#DIV/0!"}},{"$f":"MAX(M67:M78)","v":0},{"$f":"AVERAGE(N67:N78)","v":{"$error":"#DIV/0!"}},{"$f":"MAX(O67:O78)","v":0}]

{"sheet":"TOC","index":18,"n_rows":79,"n_cols":17,"rows_kept":79,"cut":false,"hidden":false,"merged":[[3,16,7,18],[9,16,11,18],[12,16,15,18],[66,9,78,9],[4,1,4,3],[4,4,4,6],[4,9,4,14],[6,9,18,9],[21,9,33,9],[36,9,48,9],[47,0,47,6],[48,0,51,6],[51,9,63,9]]}
[{"$f":"+'Cover Page'!$B$29","v":"Annual Performance Report 2023"},null,null,null,{"$f":"+'Cover Page'!$B$33","v":"Kent Enviropower Limited"}]
[]
["Monitoring of Total organic carbon emissions",null,null,"Whole Installation",null,null,"See  Notes in Cell Q3",null,null,{"$f":"+A3","v":"Monitoring of Total organic carbon emissions"},null,null,null,"Per Combustion Line",null,null,"Notes:"]
[null,null,null,null,null,null,null,null,null,null,null,null,null,null,null,null,"User to add logic to complete Whole installation, Table A5:G18. From the data in Per Combustion Line, Table J6:O79, subject to No. of lines installed"]
["mg/Nm3","1/2 Hourly Reference Periods",null,null,"Daily Reference Periods"]
[{"$f":"+'Cover Page'!C39","v":2023},"1/2 hourly TOC ELV","Monthly 1/2 hourly mean","Highest 1/2 hourly maximum","Daily TOC ELV","Monthly daily mean","Highest daily maximum",null,null,{"$f":"+A6","v":2023},"mg/Nm3","Monthly 1/2 hourly mean","Monthly 1/2 hourly maximum","Monthly daily mean","Monthly daily maximum"]
["Jan",10,{"$f":"AVERAGE(L7,L22,L37)","v":0.43987114387873366},{"$f":"MAX(M7,M22,M37)","v":345.99838256835898},10,{"$f":"AVERAGE(N7,N22,N37)","v":0.31744110736436743},{"$f":"MAX(O7,O22,O37)","v":1.0967489480972199},null,null,"A1","Jan",0.69689266477256395,345.99838256835898,0.33989999999999998,1.0967489480972199]
["Feb",10,{"$f":"AVERAGE(L8,L23,L38)","v":0.51103273614051936},{"$f":"MAX(M8,M23,M38)","v":213.54837036132813},10,{"$f":"AVERAGE(N8,N23,N38)","v":0.50646143862462722},{"$f":"MAX(O8,O23,O38)","v":5.7483921051025391},null,null,null,"Feb",0.89314098354126958,213.54837036132813,0.89746322951934954,5.7483921051025391]
["Mar",10,0.40176653023183345,48.299690246582031,10,0.23225315565956225,1.2703820466995239,null,null,null,"Mar",0.52119582538541998,2.7734649181365967,0,0,null,"Whole Installation table A5:G18:"]
["Apr",10,0.3293766370959495,20.120351791381836,10,0.328753046913628,1.2860889434814453,null,null,null,"Apr",0.31136594506705306,2.0771670341491699,0.30949520907903971,0.38075900077819824,null,"Mean: for 1/2 hourly and daily periods calculate mean of values across all operational combustion lines for the month"]
["May",10,0.36136329816158286,45.332756042480469,10,0.36206651952745239,1.3174500465393066,null,null,null,"May",0.3680719496802457,45.332756042480469,0.36806361617580535,1.3174500465393066]
["Jun",10,0.373298624101497,23.795906066894531,10,0.35583265334969821,1.0034439563751221,null,null,null,"Jun",0.34706279790140893,6.6124181747436523,0.3442208468914032,0.60104697942733765]
["Jul",10,0.3945926268440989,29.133396148681641,10,0.39255684130294349,2.1830980777740479,null,null,null,"Jul",0.37301710906213226,7.6858959197998047,0.36690964996814729,0.47405099868774414,null,"Maximum: for 1/2 hourly and daily periods use the highest value across all operational combustion lines for the month"]
["Aug",10,0.45701453040753304,40.805179595947266,10,0.44756344494853817,1.8572410345077515,null,null,null,"Aug",0.36781565056591436,10.189001083374023,0.33945720394452411,0.37974101305007935]
["Sep",10,0.41367518466090192,24.936830520629883,10,0.37627427101912331,1.5308330059051514,null,null,null,"Sep",0.50357003935384059,24.936830520629883,0.43779917857186362,1.4777649641036987]
["Oct",10,0.41289082962161833,19.953451156616211,10,0.39313905295967305,0.88144302368164063,null,null,null,"Oct",0.40819545798557078,9.3678827285766602,0.39764964924408841,0.6720079779624939]
["Nov",10,0.32496270187069626,11.769795417785645,10,0.31429112818506028,0.53937399387359619,null,null,null,"Nov",0.27826012280873125,3.7312350273132324,0.27826016743977866,0.44386899471282959]
["Dec",10,0.25796924678033933,9.6387720108032227,10,0.25750652071487262,0.46580800414085388,null,null,null,"Dec",0.28456233672657483,9.6387720108032227,0.28456232288191396,0.46580800414085388]
[null,null,null,null,null,null,null,null,null,null,"Annual",{"$f":"AVERAGE(L7:L18)","v":0.44609590690422701},{"$f":"MAX(M7:M18)","v":345.99838256835898},{"$f":"AVERAGE(N7:N18)","v":0.36364842280965953},{"$f":"MAX(O7:O18)","v":5.7483921051025391}]
[]
[null,null,null,null,null,null,null,null,null,{"$f":"+A6","v":2023},"mg/Nm3","Monthly 1/2 hourly mean","Monthly 1/2 hourly maximum","Monthly daily mean","Monthly daily maximum"]
[null,null,null,null,null,null,null,null,null,"A2","Jan",0.24679749832659001,9.12823390960693,0.23649999999999999,0.43219301104545599]
[null,null,null,null,null,null,null,null,null,null,"Feb",0.3239922549223046,7.7455921173095703,0.30933212836583457,0.55290800333023071]
[null,null,null,null,null,null,null,null,null,null,"Mar",0.33301006461137334,48.299690246582031,0.33795696276205556,1.2703820466995239]
[null,null,null,null,null,null,null,null,null,null,"Apr",0.29024682850747907,19.307926177978516,0.29024676854411763,0.99544501304626465]
[null,null,null,null,null,null,null,null,null,null,"May",0.28455429175187663,29.595142364501953,0.28454567828486044,1.0102440118789673]
[null,null,null,null,null,null,null,null,null,null,"Jun",0.37152434180369409,23.795906066894531,0.34108704260804434,1.0034439563751221]
[null,null,null,null,null,null,null,null,null,null,"Jul",0.28918888056851044,8.5574493408203125,0.2891888714605762,0.48195898532867432]
[null,null,null,null,null,null,null,null,null,null,"Aug",0.32991969998383081,37.527984619140625,0.32992490260831769,1.0042879581451416]
[null,null,null,null,null,null,null,null,null,null,"Sep",0.40669285095163482,18.168693542480469,0.35963881402103987,1.5308330059051514]
[null,null,null,null,null,null,null,null,null,null,"Oct",0.30666624304167062,12.210247039794922,0.30280884472947373,0.84769099950790405]
[null,null,null,null,null,null,null,null,null,null,"Nov",0.24428960130170541,11.769795417785645,0.23066622018814087,0.53937399387359619]
[null,null,null,null,null,null,null,null,null,null,"Dec",0.18172885275541653,4.6793551445007324,0.18098241296307793,0.28150200843811035]
[null,null,null,null,null,null,null,null,null,null,"Annual",{"$f":"AVERAGE(L22:L33)","v":0.3007176173771739},{"$f":"MAX(M22:M33)","v":48.299690246582031},{"$f":"AVERAGE(N22:N33)","v":0.2910732205446282},{"$f":"MAX(O22:O33)","v":1.5308330059051514}]
[]
[null,null,null,null,null,null,null,null,null,{"$f":"+A6","v":2023},"mg/Nm3","Monthly 1/2 hourly mean","Monthly 1/2 hourly maximum","Monthly daily mean","Monthly daily maximum"]
[null,null,null,null,null,null,null,null,null,"A3","Jan",0.375923268537047,14.805866241455,0.37592332209310225,0.82924097776412897]
[null,null,null,null,null,null,null,null,null,null,"Feb",0.31596496995798379,1.8710910081863403,0.31258895798869757,0.41464599967002869]
[null,null,null,null,null,null,null,null,null,null,"Mar",0.35109370069870721,9.4481887817382813,0.35880250421663124,0.60740101337432861]
[null,null,null,null,null,null,null,null,null,null,"Apr",0.38651713771331642,20.120351791381836,0.38651716311772666,1.2860889434814453]
[null,null,null,null,null,null,null,null,null,null,"May",0.43146365305262618,4.264610767364502,0.43359026412169138,0.67245501279830933]
[null,null,null,null,null,null,null,null,null,null,"Jun",0.40130873259938793,3.7429730892181396,0.38219007054964699,0.5818600058555603]
[null,null,null,null,null,null,null,null,null,null,"Jul",0.52157189090165401,29.133396148681641,0.52157200248010693,2.1830980777740479]
[null,null,null,null,null,null,null,null,null,null,"Aug",0.67330824067285389,40.805179595947266,0.67330822829277281,1.8572410345077515]
[null,null,null,null,null,null,null,null,null,null,"Sep",0.33076266367723034,8.0840177536010742,0.33138482046446632,0.63979899883270264]
[null,null,null,null,null,null,null,null,null,null,"Oct",0.5238107878376137,19.953451156616211,0.47895866490545724,0.88144302368164063]
[null,null,null,null,null,null,null,null,null,null,"Nov",0.45233838150165223,1.2968239784240723,0.43394699692726135,0.4600130021572113]
["Comments :",null,null,null,null,null,null,null,null,null,"Dec",0.30761655085902673,3.0811750888824463,0.30697482629962591,0.43325901031494141]
[null,null,null,null,null,null,null,null,null,null,"Annual",{"$f":"AVERAGE(L37:L48)","v":0.42263999816742509},{"$f":"MAX(M37:M48)","v":40.805179595947266},{"$f":"AVERAGE(N37:N48)","v":0.41631315178809886},{"$f":"MAX(O37:O48)","v":2.1830980777740479}]
[]
[null,null,null,null,null,null,null,null,null,{"$f":"+A6","v":2023},"mg/Nm3","Monthly 1/2 hourly mean","Monthly 1/2 hourly maximum","Monthly daily mean","Monthly daily maximum"]
[null,null,null,null,null,null,null,null,null,"A4","Jan"]
[null,null,null,null,null,null,null,null,null,null,"Feb"]
[null,null,null,null,null,null,null,null,null,null,"Mar"]
[null,null,null,null,null,null,null,null,null,null,"Apr"]
[null,null,null,null,null,null,null,null,null,null,"May"]
[null,null,null,null,null,null,null,null,null,null,"Jun"]
[null,null,null,null,null,null,null,null,null,null,"Jul"]
[null,null,null,null,null,null,null,null,null,null,"Aug"]
[null,null,null,null,null,null,null,null,null,null,"Sep"]
[null,null,null,null,null,null,null,null,null,null,"Oct"]
[null,null,null,null,null,null,null,null,null,null,"Nov"]
[null,null,null,null,null,null,null,null,null,null,"Dec"]
[null,null,null,null,null,null,null,null,null,null,"Annual",{"$f":"AVERAGE(L52:L63)","v":{"$error":"#DIV/0!"}},{"$f":"MAX(M52:M63)","v":0},{"$f":"AVERAGE(N52:N63)","v":{"$error":"#DIV/0!"}},{"$f":"MAX(O52:O63)","v":0}]
[]
[null,null,null,null,null,null,null,null,null,{"$f":"+A6","v":2023},"mg/Nm3","Monthly 1/2 hourly mean","Monthly 1/2 hourly maximum","Monthly daily mean","Monthly daily maximum"]
[null,null,null,null,null,null,null,null,null,"A5","Jan"]
[null,null,null,null,null,null,null,null,null,null,"Feb"]
[null,null,null,null,null,null,null,null,null,null,"Mar"]
[null,null,null,null,null,null,null,null,null,null,"Apr"]
[null,null,null,null,null,null,null,null,null,null,"May"]
[null,null,null,null,null,null,null,null,null,null,"Jun"]
[null,null,null,null,null,null,null,null,null,null,"Jul"]
[null,null,null,null,null,null,null,null,null,null,"Aug"]
[null,null,null,null,null,null,null,null,null,null,"Sep"]
[null,null,null,null,null,null,null,null,null,null,"Oct"]
[null,null,null,null,null,null,null,null,null,null,"Nov"]
[null,null,null,null,null,null,null,null,null,null,"Dec"]
[null,null,null,null,null,null,null,null,null,null,"Annual",{"$f":"AVERAGE(L67:L78)","v":{"$error":"#DIV/0!"}},{"$f":"MAX(M67:M78)","v":0},{"$f":"AVERAGE(N67:N78)","v":{"$error":"#DIV/0!"}},{"$f":"MAX(O67:O78)","v":0}]

{"sheet":"Particulates","index":19,"n_rows":79,"n_cols":17,"rows_kept":79,"cut":false,"hidden":false,"merged":[[3,16,7,18],[9,16,11,18],[12,16,15,18],[66,9,78,9],[4,1,4,3],[4,4,4,6],[4,9,4,14],[6,9,18,9],[21,9,33,9],[36,9,48,9],[47,0,47,6],[48,0,51,6],[51,9,63,9],[18,4,18,6]]}
[{"$f":"+'Cover Page'!$B$29","v":"Annual Performance Report 2023"},null,null,null,{"$f":"+'Cover Page'!$B$33","v":"Kent Enviropower Limited"}]
[]
["Monitoring of Particulate matter emissions",null,null,"Whole Installation",null,null,"See  Notes in Cell Q3",null,null,{"$f":"+A3","v":"Monitoring of Particulate matter emissions"},null,null,null,"Per Combustion Line",null,null,"Notes:"]
[null,null,null,null,null,null,null,null,null,null,null,null,null,null,null,null,"User to add logic to complete Whole installation, Table A5:G18. From the data in Per Combustion Line, Table J6:O79, subject to No. of lines installed"]
["mg/Nm3","1/2 Hourly Reference Periods",null,null,"Daily Reference Periods"]
[{"$f":"+'Cover Page'!C39","v":2023},"1/2 hourly PM ELV","Monthly 1/2 hourly mean","Highest 1/2 hourly maximum","Daily PM ELV*","Monthly daily mean","Highest daily maximum",null,null,{"$f":"+A6","v":2023},"mg/Nm3","Monthly 1/2 hourly mean","Monthly 1/2 hourly maximum","Monthly daily mean","Monthly daily maximum"]
["Jan",30,{"$f":"AVERAGE(L7,L22,L37)","v":1.1691961522372532},{"$f":"MAX(M7,M22,M37)","v":5.9197921752929599},10,{"$f":"AVERAGE(N7,N22,N37)","v":1.1575666666666666},{"$f":"MAX(O7,O22,O37)","v":3.5088150501251198},null,null,"A1","Jan",1.38786270032406,5.9197921752929599,1.3740000000000001,3.5088150501251198]
["Feb",30,{"$f":"AVERAGE(L8,L23,L38)","v":2.2914564943327953},{"$f":"MAX(M8,M23,M38)","v":17.731914520263672},10,{"$f":"AVERAGE(N8,N23,N38)","v":2.2887714945367761},{"$f":"MAX(O8,O23,O38)","v":9.45648193359375},null,null,null,"Feb",3.8070821258219869,17.731914520263672,3.8165629969702826,9.45648193359375]
["Mar",30,6.1756024832902403,25.995162963867188,10,1.6286806267352751,3.8578779697418213,null,null,null,"Mar",13.675040961096162,25.995162963867188,0,0,null,"Whole Installation table A5:G18:"]
["Apr",30,2.4915854153595887,7.3935790061950684,10,2.4918495670396683,4.1716752052307129,null,null,null,"Apr",1.8358700929602882,4.7000298500061035,1.8366624838427494,3.7606110572814941,null,"Mean: for 1/2 hourly and daily periods calculate mean of values across all operational combustion lines for the month"]
["May",30,2.0932855766538778,7.637937068939209,10,2.0924859175972617,4.2039189338684082,null,null,null,"May",1.1624511941386166,6.810297966003418,1.1624512557060487,2.7342491149902344]
["Jun",30,2.3826701524270719,10.567641258239746,10,2.3574636995097698,4.4383959770202637,null,null,null,"Jun",1.3246712610183704,10.567641258239746,1.310481832577632,4.4383959770202637]
["Jul",30,2.4803335923530061,5.8619241714477539,10,2.4558670944424086,4.3806171417236328,null,null,null,"Jul",2.0860795415463573,5.8619241714477539,2.0126800000667573,2.7416300773620605,null,"Maximum: for 1/2 hourly and daily periods use the highest value across all operational combustion lines for the month"]
["Aug",30,2.8869459313105388,8.0349597930908203,10,2.8916214957459427,6.2382049560546875,null,null,null,"Aug",2.0111149308227358,5.0445761680603027,2.0251304785410564,3.9701681137084961]
["Sep",30,2.854389857708632,11.324643135070801,10,2.8805755675269062,6.8218188285827637,null,null,null,"Sep",2.6222033059331262,11.324643135070801,2.6644214066592129,5.0686631202697754]
["Oct",30,2.0681519212846093,12.98017692565918,10,2.0860192610636656,3.9782938957214355,null,null,null,"Oct",2.2853387021047582,12.98017692565918,2.3008579841026893,3.9782938957214355]
["Nov",30,2.5032265004850056,11.365259170532227,10,2.5446329861511416,4.6800217628479004,null,null,null,"Nov",2.1352952185190386,11.365259170532227,2.1352952082951862,4.6800217628479004]
["Dec",30,2.5420298461711615,7.626215934753418,5,2.5344789026937793,4.4239020347595215,null,null,null,"Dec",2.222331031596148,6.8685870170593262,2.2223309124669721,3.6779830455780029]
[null,null,null,null,"* ELV reduced to 5 mg/Nm3 on 3 December 2023",null,null,null,null,null,"Annual",{"$f":"AVERAGE(L7:L18)","v":3.0462784221568042},{"$f":"MAX(M7:M18)","v":25.995162963867188},{"$f":"AVERAGE(N7:N18)","v":1.9050728799357153},{"$f":"MAX(O7:O18)","v":9.45648193359375}]
[]
[null,null,null,null,null,null,null,null,null,{"$f":"+A6","v":2023},"mg/Nm3","Monthly 1/2 hourly mean","Monthly 1/2 hourly maximum","Monthly daily mean","Monthly daily maximum"]
[null,null,null,null,null,null,null,null,null,"A2","Jan",1.1001729097983,5.6474270820617596,1.0790999999999999,1.2469719648361199]
[null,null,null,null,null,null,null,null,null,null,"Feb",1.5646286201294122,3.8624389171600342,1.549656875928243,2.0544021129608154]
[null,null,null,null,null,null,null,null,null,null,"Mar",2.4422753491196056,4.4318609237670898,2.4801158066149109,3.8578779697418213]
[null,null,null,null,null,null,null,null,null,null,"Apr",2.2379930051664512,7.3935790061950684,2.237993053595225,3.7224209308624268]
[null,null,null,null,null,null,null,null,null,null,"May",1.9006850461485565,4.3295340538024902,1.9006706899212253,3.0540380477905273]
[null,null,null,null,null,null,null,null,null,null,"Jun",2.9178171839937899,6.5511441230773926,2.9068264202638106,3.9036679267883301]
[null,null,null,null,null,null,null,null,null,null,"Jul",2.5387082962739851,5.853208065032959,2.5387082830552132,4.0192141532897949]
[null,null,null,null,null,null,null,null,null,null,"Aug",2.4311645419527124,5.9111838340759277,2.4311756433979159,3.1411340236663818]
[null,null,null,null,null,null,null,null,null,null,"Sep",3.0714323359020685,7.0395469665527344,3.0717048247655234,4.1264100074768066]
[null,null,null,null,null,null,null,null,null,null,"Oct",1.263761587992279,8.3146457672119141,1.22372893910659,2.5664680004119873]
[null,null,null,null,null,null,null,null,null,null,"Nov",2.5383528860189295,6.5736222267150879,2.5841272362956293,3.6567831039428711]
[null,null,null,null,null,null,null,null,null,null,"Dec",2.7774907328558305,7.0132498741149902,2.7631542107154585,3.5514869689941406]
[null,null,null,null,null,null,null,null,null,null,"Annual",{"$f":"AVERAGE(L22:L33)","v":2.2320402079459933},{"$f":"MAX(M22:M33)","v":8.3146457672119141},{"$f":"AVERAGE(N22:N33)","v":2.2305801653049788},{"$f":"MAX(O22:O33)","v":4.1264100074768066}]
[]
[null,null,null,null,null,null,null,null,null,{"$f":"+A6","v":2023},"mg/Nm3","Monthly 1/2 hourly mean","Monthly 1/2 hourly maximum","Monthly daily mean","Monthly daily maximum"]
[null,null,null,null,null,null,null,null,null,"A3","Jan",1.0195528465893999,1.5078099966049101,1.0196000000000001,1.25007796287536]
[null,null,null,null,null,null,null,null,null,null,"Feb",1.5026587370469873,4.1429538726806641,1.5000946107118025,2.0954329967498779]
[null,null,null,null,null,null,null,null,null,null,"Mar",2.4094911396549548,5.6801128387451172,2.4059260735909143,3.4861710071563721]
[null,null,null,null,null,null,null,null,null,null,"Apr",3.4008931479520266,6.5910830497741699,3.4008931636810305,4.1716752052307129]
[null,null,null,null,null,null,null,null,null,null,"May",3.2167204896744606,7.637937068939209,3.2143358071645101,4.2039189338684082]
[null,null,null,null,null,null,null,null,null,null,"Jun",2.9055220122690555,6.6364078521728516,2.8550828456878663,3.6359069347381592]
[null,null,null,null,null,null,null,null,null,null,"Jul",2.8162129392386763,5.0968141555786133,2.8162130002052552,4.3806171417236328]
[null,null,null,null,null,null,null,null,null,null,"Aug",4.2185583211561681,8.0349597930908203,4.2185583652988559,6.2382049560546875]
[null,null,null,null,null,null,null,null,null,null,"Sep",2.8695339312906998,11.211446762084961,2.9056004711559842,6.8218188285827637]
[null,null,null,null,null,null,null,null,null,null,"Oct",2.6553554737567904,4.9696598052978516,2.7334708599817183,3.2866230010986328]
[null,null,null,null,null,null,null,null,null,null,"Nov",2.8360313969170488,5.3313808441162109,2.9144765138626099,3.1070261001586914]
["Comments :",null,null,null,null,null,null,null,null,null,"Dec",2.6262677740615072,7.626215934753418,2.6179515848989072,4.4239020347595215]
[null,null,null,null,null,null,null,null,null,null,"Annual",{"$f":"AVERAGE(L37:L48)","v":2.7063998508006484},{"$f":"MAX(M37:M48)","v":11.211446762084961},{"$f":"AVERAGE(N37:N48)","v":2.716850274686621},{"$f":"MAX(O37:O48)","v":6.8218188285827637}]
[]
[null,null,null,null,null,null,null,null,null,{"$f":"+A6","v":2023},"mg/Nm3","Monthly 1/2 hourly mean","Monthly 1/2 hourly maximum","Monthly daily mean","Monthly daily maximum"]
[null,null,null,null,null,null,null,null,null,"A4","Jan"]
[null,null,null,null,null,null,null,null,null,null,"Feb"]
[null,null,null,null,null,null,null,null,null,null,"Mar"]
[null,null,null,null,null,null,null,null,null,null,"Apr"]
[null,null,null,null,null,null,null,null,null,null,"May"]
[null,null,null,null,null,null,null,null,null,null,"Jun"]
[null,null,null,null,null,null,null,null,null,null,"Jul"]
[null,null,null,null,null,null,null,null,null,null,"Aug"]
[null,null,null,null,null,null,null,null,null,null,"Sep"]
[null,null,null,null,null,null,null,null,null,null,"Oct"]
[null,null,null,null,null,null,null,null,null,null,"Nov"]
[null,null,null,null,null,null,null,null,null,null,"Dec"]
[null,null,null,null,null,null,null,null,null,null,"Annual",{"$f":"AVERAGE(L52:L63)","v":{"$error":"#DIV/0!"}},{"$f":"MAX(M52:M63)","v":0},{"$f":"AVERAGE(N52:N63)","v":{"$error":"#DIV/0!"}},{"$f":"MAX(O52:O63)","v":0}]
[]
[null,null,null,null,null,null,null,null,null,{"$f":"+A6","v":2023},"mg/Nm3","Monthly 1/2 hourly mean","Monthly 1/2 hourly maximum","Monthly daily mean","Monthly daily maximum"]
[null,null,null,null,null,null,null,null,null,"A5","Jan"]
[null,null,null,null,null,null,null,null,null,null,"Feb"]
[null,null,null,null,null,null,null,null,null,null,"Mar"]
[null,null,null,null,null,null,null,null,null,null,"Apr"]
[null,null,null,null,null,null,null,null,null,null,"May"]
[null,null,null,null,null,null,null,null,null,null,"Jun"]
[null,null,null,null,null,null,null,null,null,null,"Jul"]
[null,null,null,null,null,null,null,null,null,null,"Aug"]
[null,null,null,null,null,null,null,null,null,null,"Sep"]
[null,null,null,null,null,null,null,null,null,null,"Oct"]
[null,null,null,null,null,null,null,null,null,null,"Nov"]
[null,null,null,null,null,null,null,null,null,null,"Dec"]
[null,null,null,null,null,null,null,null,null,null,"Annual",{"$f":"AVERAGE(L67:L78)","v":{"$error":"#DIV/0!"}},{"$f":"MAX(M67:M78)","v":0},{"$f":"AVERAGE(N67:N78)","v":{"$error":"#DIV/0!"}},{"$f":"MAX(O67:O78)","v":0}]

{"sheet":"CO 95% 10 min","index":20,"n_rows":82,"n_cols":19,"rows_kept":82,"cut":false,"hidden":false,"merged":[[4,0,5,7],[6,18,10,20],[12,18,14,20],[15,18,18,20],[69,10,81,10],[7,1,7,4],[7,5,7,7],[7,10,7,16],[9,10,21,10],[24,10,36,10],[39,10,51,10],[50,0,50,7],[51,0,54,7],[54,10,66,10]]}
[{"$f":"+'Cover Page'!$B$29","v":"Annual Performance Report 2023"},null,null,null,{"$f":"+'Cover Page'!$B$33","v":"Kent Enviropower Limited"}]
[]
["Monitoring of Carbon Monoxide (10-minute avg)",null,null,null,"Whole Installation",null,null,"See  Notes in Cell S3",null,{"$f":"+A3","v":"Monitoring of Carbon Monoxide (10-minute avg)"},null,null,null,null,"Per Combustion Line",null,"Notes:",null,"Notes:"]
[]
["Please complete this tab for your plant if you have 10-minute average CO ELVs; otherwise, leave it blank and complete the CO 0.5 hourly tab"]
[]
[null,null,null,null,null,null,null,null,null,null,null,null,null,null,null,null,null,null,"User to add logic to complete Whole installation, Table A5:H18. From the data in Per Combustion Line, Table K6:Q79, subject to No. of lines installed"]
["mg/Nm3","10-minute Reference Periods",null,null,null,"Daily Reference Periods"]
[{"$f":"+'Cover Page'!C39","v":2023},"95%ile 10-min avg CO ELV","95%ile 10-min avg maximum","Monthly CO 10-min avg mean","10-min avg maximum","Daily CO ELV","Monthly daily mean","Highest daily maximum",null,null,{"$f":"+A9","v":2023},"mg/Nm3","95%ile 10-min avg maximum","Monthly CO 10-min avg mean","10-min avg maximum","Monthly daily mean","Monthly daily maximum"]
["Jan",150,{"$f":"MAX(M10,M25,M40)","v":22.01234245300293},{"$f":"AVERAGE(N10,N25,N40)","v":4.7518174411029834},{"$f":"MAX(O10,O25,O40)","v":12713.8583984375},50,{"$f":"AVERAGE(P10,P25,P40)","v":2.6294297140424128},{"$f":"MAX(Q10,Q25,Q40)","v":12.749395370483398},null,null,"A1","Jan",0.83964997529983521,8.1693939868273002,12713.8583984375,2.4180271727964282,12.749395370483398]
["Feb",{"$f":"+B10","v":150},{"$f":"MAX(M11,M26,M41)","v":17.907018661499023},{"$f":"AVERAGE(N11,N26,N41)","v":5.5053015111025658},{"$f":"MAX(O11,O26,O41)","v":6413.892578125},{"$f":"+F10","v":50},{"$f":"AVERAGE(P11,P26,P41)","v":4.2968731659896102},{"$f":"MAX(Q11,Q26,Q41)","v":46.083366394042969},null,null,null,"Feb",5.4716510772705078,11.31491751601712,6413.892578125,8.2382759311451359,46.083366394042969]
["Mar",{"$f":"+B11","v":150},14.821385383605957,4.4120190534258219,1670.28515625,{"$f":"+F11","v":50},2.1428031783413002,15.747858047485352,null,null,null,"Mar",14.821385383605957,7.2515707251129831,602.801025390625,0,0,null,"Whole Installation table A5:H18:"]
["Apr",150,21.27781867980957,2.2331053023109275,570.955078125,50,2.2332228857609961,19.442575454711914,null,null,null,"Apr",0.21361500024795532,0.49606891845228285,146.23603820800781,0.4964216873049736,1.7899069786071777,null,"Mean: for 10-min and daily periods use average of all operational combustion lines."]
["May",150,35.768840789794922,4.0454361126204228,1428.290771484375,50,4.0730566758061606,15.256997108459473,null,null,null,"May",1.7034460306167603,1.8426713473385634,1428.290771484375,1.8426712490017376,11.455706596374512]
["Jun",150,24.191513061523438,3.4192466277421047,1593.8436279296875,50,3.0273912927510671,22.609731674194336,null,null,null,"Jun",1.3109389543533325,1.4635752945229525,452.55606079101563,1.4208101525616188,7.6172571182250977]
["Jul",150,22.276567459106445,3.0076393028923634,996.64678955078125,50,2.9718397643136725,14.587464332580566,null,null,null,"Jul",2.289470911026001,2.073314386445448,996.64678955078125,1.9659158408641815,8.4326143264770508,null,"Maximum: for 10-min and daily periods use the highest of all operational combustion lines in any month."]
["Aug",150,24.763286590576172,2.8566753699216592,1317.2322998046875,50,2.7279487446237582,23.413125991821289,null,null,null,"Aug",0.33705899119377136,0.83604305927312317,579.2049560546875,0.44986319473634162,1.2335410118103027]
["Sep",150,25.706792831420898,4.9519203737110731,1809.60986328125,50,4.2414813704145997,36.134361267089844,null,null,null,"Sep",25.706792831420898,7.8225967089995754,1809.60986328125,6.2292382825504653,36.134361267089844]
["Oct",150,27.074106216430664,4.3158546645618854,1525.45361328125,50,3.6848178004922914,18.894546508789063,null,null,null,"Oct",4.4984917640686035,2.6387545411139337,546.759521484375,2.3422419716281673,9.2987165451049805]
["Nov",150,31.15229606628418,2.8476960303336689,977.5943603515625,50,2.9416081410384289,11.713931083679199,null,null,null,"Nov",0.43735998868942261,0.82343048950768405,258.13534545898438,0.82308151231457793,5.057854175567627]
["Dec",150,7.3024258613586426,1.5642178340803568,521.63427734375,50,1.553799047399961,9.8268918991088867,null,null,null,"Dec",2.6211979389190674,1.522744836660763,344.5711669921875,1.521384164090118,4.1176791191101074]
[null,null,null,null,null,null,null,null,null,null,null,"Annual",{"$f":"AVERAGE(M10:M21)","v":5.0209215705593424},{"$f":"AVERAGE(N10:N21)","v":3.8545901508559779},{"$f":"MAX(O10:O21)","v":12713.8583984375},{"$f":"AVERAGE(P10:P21)","v":2.3123275965828118},{"$f":"MAX(Q10:Q21)","v":46.083366394042969}]
[]
[null,null,null,null,null,null,null,null,null,null,{"$f":"+A9","v":2023},"mg/Nm3","95%ile 10-min avg maximum","Monthly CO 10-min avg mean","10-min avg maximum","Monthly daily mean","Monthly daily maximum"]
[null,null,null,null,null,null,null,null,null,null,"A2","Jan",1.0412909984588623,2.0503606755323487,635.95794677734375,1.4345642890036105,6.922025203704834]
[null,null,null,null,null,null,null,null,null,null,null,"Feb",1.9148180484771729,1.7689413930231166,815.79742431640625,1.266934268673261,4.0439109802246094]
[null,null,null,null,null,null,null,null,null,null,null,"Mar",2.6297290325164795,2.2945650919194605,1670.28515625,2.428086435629262,13.632210731506348]
[null,null,null,null,null,null,null,null,null,null,null,"Apr",4.2598609924316406,2.0803862140158267,489.71859741210938,2.0803861250480016,11.57186222076416]
[null,null,null,null,null,null,null,null,null,null,null,"May",9.5038309097290039,3.0508874644876394,578.834228515625,3.0508828478594943,10.015887260437012]
[null,null,null,null,null,null,null,null,null,null,null,"Jun",5.2133798599243164,3.6387529775452561,1593.8436279296875,3.2458713499998506,22.609731674194336]
[null,null,null,null,null,null,null,null,null,null,null,"Jul",3.3005309104919434,2.0953737318346222,797.865478515625,2.095373744205121,7.4291510581970215]
[null,null,null,null,null,null,null,null,null,null,null,"Aug",1.6024620532989502,1.698058382639136,633.92486572265625,1.6980583122180355,10.772394180297852]
[null,null,null,null,null,null,null,null,null,null,null,"Sep",12.558096885681152,3.5442569552301624,533.5806884765625,2.9941296066950867,16.194818496704102]
[null,null,null,null,null,null,null,null,null,null,null,"Oct",4.5331311225891113,2.4758847894196592,446.8095703125,2.4359228289441059,11.913134574890137]
[null,null,null,null,null,null,null,null,null,null,null,"Nov",3.0537559986114502,2.0050306118975221,977.5943603515625,1.6877389664037361,11.713931083679199]
[null,null,null,null,null,null,null,null,null,null,null,"Dec",0.23064100742340088,0.72092656616958795,309.20513916015625,0.65757941509243745,3.4425899982452393]
[null,null,null,null,null,null,null,null,null,null,null,"Annual",{"$f":"AVERAGE(M25:M36)","v":4.1534606516361237},{"$f":"AVERAGE(N25:N36)","v":2.2852854044761943},{"$f":"MAX(O25:O36)","v":1670.28515625},{"$f":"AVERAGE(P25:P36)","v":2.0896273491476669},{"$f":"MAX(Q25:Q36)","v":22.609731674194336}]
[]
[null,null,null,null,null,null,null,null,null,null,{"$f":"+A9","v":2023},"mg/Nm3","95%ile 10-min avg maximum","Monthly CO 10-min avg mean","10-min avg maximum","Monthly daily mean","Monthly daily maximum"]
[null,null,null,null,null,null,null,null,null,null,"A3","Jan",22.01234245300293,4.0356976609493014,337.67080688476563,4.0356976803271998,10.440202713012695]
[null,null,null,null,null,null,null,null,null,null,null,"Feb",17.907018661499023,3.4320456242674631,395.31512451171875,3.3854092981504356,8.4307518005371094]
[null,null,null,null,null,null,null,null,null,null,null,"Mar",12.354169845581055,3.6899213432450217,1036.0162353515625,4.000323099394639,15.747858047485352]
[null,null,null,null,null,null,null,null,null,null,null,"Apr",21.27781867980957,4.122860774464673,570.955078125,4.1228608449300133,19.442575454711914]
[null,null,null,null,null,null,null,null,null,null,null,"May",35.768840789794922,7.2427495260350669,804.1888427734375,7.3256159305572508,15.256997108459473]
[null,null,null,null,null,null,null,null,null,null,null,"Jun",24.191513061523438,5.1554116111581054,396.67950439453125,4.4154923756917315,7.7562980651855469]
[null,null,null,null,null,null,null,null,null,null,null,"Jul",22.276567459106445,4.85422979039702,507.97512817382813,4.8542297078717143,14.587464332580566]
[null,null,null,null,null,null,null,null,null,null,null,"Aug",24.763286590576172,6.0359246678527194,1317.2322998046875,6.0359247269168979,23.413125991821289]
[null,null,null,null,null,null,null,null,null,null,null,"Sep",14.403417587280273,3.4889074569034824,1464.5263671875,3.501076221998249,18.837495803833008]
[null,null,null,null,null,null,null,null,null,null,null,"Oct",27.074106216430664,7.8329246631520615,1525.45361328125,6.2762886009046008,18.894546508789063]
[null,null,null,null,null,null,null,null,null,null,null,"Nov",31.15229606628418,5.7146269895958017,324.446533203125,6.3140039443969727,9.983881950378418]
["Comments :",null,null,null,null,null,null,null,null,null,null,"Dec",7.3024258613586426,2.4489820994107188,521.63427734375,2.4824335630173269,9.8268918991088867]
["Environment Agency explanatory note: The 10-minute average ELV is based on the “95th percentile”. In this case this means that 95% of the 10 minute averages in the relevant 24-hour period (i.e. 137) must be below 150 mg/Nm3, and 5% (i.e. 7) are allowed to be any value above 150 mg/Nm3. Whilst we expect operators to minimise CO emissions at all times, it is perfectly acceptable for the value of the maximum 10-minute average to be above 150 mg/Nm3, provided the 95th percentile ELV has been met for that period. ",null,null,null,null,null,null,null,null,null,null,"Annual",{"$f":"AVERAGE(M40:M51)","v":21.706983606020611},{"$f":"AVERAGE(N40:N51)","v":4.8378568506192865},{"$f":"MAX(O40:O51)","v":1525.45361328125},{"$f":"AVERAGE(P40:P51)","v":4.7291129995130854},{"$f":"MAX(Q40:Q51)","v":23.413125991821289}]
[]
[null,null,null,null,null,null,null,null,null,null,{"$f":"+A9","v":2023},"mg/Nm3","95%ile 10-min avg maximum","Monthly CO 10-min avg mean","10-min avg maximum","Monthly daily mean","Monthly daily maximum"]
[null,null,null,null,null,null,null,null,null,null,"A4","Jan"]
[null,null,null,null,null,null,null,null,null,null,null,"Feb"]
[null,null,null,null,null,null,null,null,null,null,null,"Mar"]
[null,null,null,null,null,null,null,null,null,null,null,"Apr"]
[null,null,null,null,null,null,null,null,null,null,null,"May"]
[null,null,null,null,null,null,null,null,null,null,null,"Jun"]
[null,null,null,null,null,null,null,null,null,null,null,"Jul"]
[null,null,null,null,null,null,null,null,null,null,null,"Aug"]
[null,null,null,null,null,null,null,null,null,null,null,"Sep"]
[null,null,null,null,null,null,null,null,null,null,null,"Oct"]
[null,null,null,null,null,null,null,null,null,null,null,"Nov"]
[null,null,null,null,null,null,null,null,null,null,null,"Dec"]
[null,null,null,null,null,null,null,null,null,null,null,"Annual",{"$f":"AVERAGE(M55:M66)","v":{"$error":"#DIV/0!"}},null,{"$f":"MAX(O55:O66)","v":0},{"$f":"AVERAGE(P55:P66)","v":{"$error":"#DIV/0!"}},{"$f":"MAX(Q55:Q66)","v":0}]
[]
[null,null,null,null,null,null,null,null,null,null,{"$f":"+A9","v":2023},"mg/Nm3","95%ile 10-min avg maximum","Monthly CO 10-min avg mean","10-min avg maximum","Monthly daily mean","Monthly daily maximum"]
[null,null,null,null,null,null,null,null,null,null,"A5","Jan"]
[null,null,null,null,null,null,null,null,null,null,null,"Feb"]
[null,null,null,null,null,null,null,null,null,null,null,"Mar"]
[null,null,null,null,null,null,null,null,null,null,null,"Apr"]
[null,null,null,null,null,null,null,null,null,null,null,"May"]
[null,null,null,null,null,null,null,null,null,null,null,"Jun"]
[null,null,null,null,null,null,null,null,null,null,null,"Jul"]
[null,null,null,null,null,null,null,null,null,null,null,"Aug"]
[null,null,null,null,null,null,null,null,null,null,null,"Sep"]
[null,null,null,null,null,null,null,null,null,null,null,"Oct"]
[null,null,null,null,null,null,null,null,null,null,null,"Nov"]
[null,null,null,null,null,null,null,null,null,null,null,"Dec"]
[null,null,null,null,null,null,null,null,null,null,null,"Annual",{"$f":"AVERAGE(M70:M81)","v":{"$error":"#DIV/0!"}},null,{"$f":"MAX(O70:O81)","v":0},{"$f":"AVERAGE(P70:P81)","v":{"$error":"#DIV/0!"}},{"$f":"MAX(Q70:Q81)","v":0}]

{"sheet":"NH3","index":21,"n_rows":79,"n_cols":17,"rows_kept":79,"cut":false,"hidden":false,"merged":[[3,16,7,18],[9,16,11,18],[12,16,15,18],[66,9,78,9],[4,1,4,3],[4,4,4,6],[4,9,4,14],[6,9,18,9],[21,9,33,9],[36,9,48,9],[47,0,47,6],[48,0,51,6],[51,9,63,9],[18,4,18,6]]}
[{"$f":"+'Cover Page'!$B$29","v":"Annual Performance Report 2023"},null,null,null,{"$f":"+'Cover Page'!$B$33","v":"Kent Enviropower Limited"}]
[]
["Monitoring of Ammnonia emissions ",null,null,"Whole Installation",null,null,"See  Notes in Cell Q3",null,null,{"$f":"+A3","v":"Monitoring of Ammnonia emissions "},null,null,null,"Per Combustion Line",null,null,"Notes:"]
[null,null,null,null,null,null,null,null,null,null,null,null,null,null,null,null,"User to add logic to complete Whole installation, Table A5:G18. From the data in Per Combustion Line, Table J6:O79, subject to No. of lines installed"]
["mg/Nm3","1/2 Hourly Reference Periods",null,null,"Daily Reference Periods"]
[{"$f":"+'Cover Page'!C39","v":2023},"1/2 hourly NH3 ELV","Monthly 1/2 hourly mean","Highest 1/2 hourly maximum","Daily NH3 ELV*","Monthly daily mean","Highest daily maximum",null,null,{"$f":"+A6","v":2023},"mg/Nm3","Monthly 1/2 hourly mean","Monthly 1/2 hourly maximum","Monthly daily mean","Monthly daily maximum"]
["Jan","None",{"$f":"AVERAGE(L7,L22,L37)","v":0.10471487645004601},{"$f":"MAX(M7,M22,M37)","v":37.155128479003906},10,{"$f":"AVERAGE(N7,N22,N37)","v":8.1804208650619228E-2},{"$f":"MAX(O7,O22,O37)","v":0.33052700757980347},null,null,"A1","Jan",0.10929584233800597,37.155128479003906,4.9064107530284673E-2,0.25434699654579163]
["Feb",{"$f":"+B7","v":"None"},{"$f":"AVERAGE(L8,L23,L38)","v":0.10437664977596099},{"$f":"MAX(M8,M23,M38)","v":19.275106430053711},10,{"$f":"AVERAGE(N8,N23,N38)","v":0.10227850159026293},{"$f":"MAX(O8,O23,O38)","v":0.69781798124313354},null,null,null,"Feb",0.13307130900109695,19.275106430053711,0.1310577780801665,0.69781798124313354]
["Mar",{"$f":"+B8","v":"None"},8.0071467684587408E-2,5.536344051361084,10,6.6418337066554367E-2,0.42299601435661316,null,null,null,"Mar",4.8594934332772698E-2,0.43828698992729187,0,0,null,"Whole Installation table A5:G18:"]
["Apr","None",9.5752351778904232E-2,3.8808529376983643,10,9.5757640246301887E-2,0.69337397813796997,null,null,null,"Apr",3.6811867094414912E-2,0.723347008228302,3.6827789153903723E-2,6.5806999802589417E-2,null,"Mean: for 1/2 hourly and daily periods calculate mean of values across all operational combustion lines for the month"]
["May","None",0.15199948743896571,4.9235668182373047,10,0.15312435419555739,0.59524697065353394,null,null,null,"May",5.703619351495845E-2,4.9235668182373047,5.7036160912004211E-2,0.2218019962310791]
["Jun","None",0.1174658517441045,14.733576774597168,10,0.108662941604679,0.54214298725128174,null,null,null,"Jun",3.8176596385171437E-2,0.83838200569152832,3.731484610873919E-2,0.11833299696445465]
["Jul","None",0.10384076706198131,3.2210290431976318,10,0.10355551980475904,0.38222399353981018,null,null,null,"Jul",3.7236100958800235E-2,1.5951780080795288,3.6380399949848652E-2,8.8353998959064484E-2,null,"Maximum: for 1/2 hourly and daily periods use the highest value across all operational combustion lines for the month"]
["Aug","None",9.6864993801265967E-2,5.0617518424987793,10,9.5929569038512408E-2,0.51661098003387451,null,null,null,"Aug",1.99685647643261E-2,1.0584850311279297,1.7162866843864321E-2,4.6587001532316208E-2]
["Sep","None",0.1262158056432561,8.594141960144043,10,0.11095244801025828,0.56307798624038696,null,null,null,"Sep",0.13162373892436072,2.8127079010009766,9.9975180558182983E-2,0.33779498934745789]
["Oct","None",0.12045651212422072,12.511605262756348,10,0.10769001788336847,0.45254901051521301,null,null,null,"Oct",5.9740938196712869E-2,1.7735539674758911,5.6207846097934708E-2,0.21490499377250671]
["Nov","None",9.5633514224294294E-2,1.550529956817627,10,9.4490307184569702E-2,0.25454801321029663,null,null,null,"Nov",3.3236220085484075E-2,0.811024010181427,3.3236099811377547E-2,9.0609997510910034E-2]
["Dec","None",7.4253662302299836E-2,4.5242581367492676,10,7.4603755861043689E-2,0.39541798830032349,null,null,null,"Dec",6.1452376430341571E-2,1.8701210021972656,6.1452451853021499E-2,0.15258599817752838]
[null,null,null,null,null,null,null,null,null,null,"Annual",{"$f":"AVERAGE(L7:L18)","v":6.3853723502203849E-2},{"$f":"MAX(M7:M18)","v":37.155128479003906},{"$f":"AVERAGE(N7:N18)","v":5.1309627241610666E-2},{"$f":"MAX(O7:O18)","v":0.69781798124313354}]
[]
[null,null,null,null,null,null,null,null,null,{"$f":"+A6","v":2023},"mg/Nm3","Monthly 1/2 hourly mean","Monthly 1/2 hourly maximum","Monthly daily mean","Monthly daily maximum"]
[null,null,null,null,null,null,null,null,null,"A2","Jan",4.814190920577794E-2,2.2431409358978271,3.9641679823398591E-2,9.2206001281738281E-2]
[null,null,null,null,null,null,null,null,null,null,"Feb",4.5999032027600813E-2,1.5048120021820068,4.2772466565171877E-2,0.10677800327539444]
[null,null,null,null,null,null,null,null,null,null,"Mar",5.3608550960863165E-2,2.6166379451751709,5.4527925637861095E-2,0.19262999296188354]
[null,null,null,null,null,null,null,null,null,null,"Apr",6.9970310345423864E-2,1.9881919622421265,6.9970266272624329E-2,0.19157099723815918]
[null,null,null,null,null,null,null,null,null,null,"May",0.11512954190989295,3.4983429908752441,0.11513293534517288,0.30733600258827209]
[null,null,null,null,null,null,null,null,null,null,"Jun",0.1221119995840204,14.733576774597168,0.11438918079842221,0.54214298725128174]
[null,null,null,null,null,null,null,null,null,null,"Jul",7.461444211365463E-2,1.2741329669952393,7.4614418490279111E-2,0.14284299314022064]
[null,null,null,null,null,null,null,null,null,null,"Aug",6.3345961712638135E-2,3.5250229835510254,6.3345419663575389E-2,0.16394199430942535]
[null,null,null,null,null,null,null,null,null,null,"Sep",0.12332421420341942,3.27305006980896,0.10925055626365873,0.40451100468635559]
[null,null,null,null,null,null,null,null,null,null,"Oct",9.5830800256952273E-2,2.2864270210266113,9.4161158133494224E-2,0.30521601438522339]
[null,null,null,null,null,null,null,null,null,null,"Nov",7.9369833395316225E-2,1.101222038269043,7.5307814335381543E-2,0.22568599879741669]
[null,null,null,null,null,null,null,null,null,null,"Dec",4.8497248882327086E-2,3.6587879657745361,4.8211207035286675E-2,0.10619299858808517]
[null,null,null,null,null,null,null,null,null,null,"Annual",{"$f":"AVERAGE(L22:L33)","v":7.8328653716490573E-2},{"$f":"MAX(M22:M33)","v":14.733576774597168},{"$f":"AVERAGE(N22:N33)","v":7.5110419030360573E-2},{"$f":"MAX(O22:O33)","v":0.54214298725128174}]
[]
[null,null,null,null,null,null,null,null,null,{"$f":"+A6","v":2023},"mg/Nm3","Monthly 1/2 hourly mean","Monthly 1/2 hourly maximum","Monthly daily mean","Monthly daily maximum"]
[null,null,null,null,null,null,null,null,null,"A3","Jan",0.15670687780635412,3.1665658950805664,0.15670683859817444,0.33052700757980347]
[null,null,null,null,null,null,null,null,null,null,"Feb",0.1340596082991852,1.4251830577850342,0.13300526012545047,0.22360500693321228]
[null,null,null,null,null,null,null,null,null,null,"Mar",0.13801091776012636,5.536344051361084,0.144727085561802,0.42299601435661316]
[null,null,null,null,null,null,null,null,null,null,"Apr",0.18047487789687391,3.8808529376983643,0.18047486531237761,0.69337397813796997]
[null,null,null,null,null,null,null,null,null,null,"May",0.28383272689204575,3.9980170726776123,0.28720396632949513,0.59524697065353394]
[null,null,null,null,null,null,null,null,null,null,"Jun",0.19210895926312163,4.055933952331543,0.17428479790687562,0.26216799020767212]
[null,null,null,null,null,null,null,null,null,null,"Jul",0.19967175811348903,3.2210290431976318,0.19967174097414939,0.38222399353981018]
[null,null,null,null,null,null,null,null,null,null,"Aug",0.20728045492683367,5.0617518424987793,0.20728042060809751,0.51661098003387451]
[null,null,null,null,null,null,null,null,null,null,"Sep",0.12369946380198817,8.594141960144043,0.12363160720893315,0.56307798624038696]
[null,null,null,null,null,null,null,null,null,null,"Oct",0.20579779791899702,12.511605262756348,0.17270104941867648,0.45254901051521301]
[null,null,null,null,null,null,null,null,null,null,"Nov",0.17429448919208257,1.550529956817627,0.17492700740695,0.25454801321029663]
["Comments :",null,null,null,null,null,null,null,null,null,"Dec",0.11281136159423083,4.5242581367492676,0.11414760869482289,0.39541798830032349]
["An indicated ELV value of zero in the table above means that no ammonia limit is/was set in the permit.  ",null,null,null,null,null,null,null,null,null,"Annual",{"$f":"AVERAGE(L37:L48)","v":0.17572910778877737},{"$f":"MAX(M37:M48)","v":12.511605262756348},{"$f":"AVERAGE(N37:N48)","v":0.17239685401215041},{"$f":"MAX(O37:O48)","v":0.69337397813796997}]
[]
[null,null,null,null,null,null,null,null,null,{"$f":"+A6","v":2023},"mg/Nm3","Monthly 1/2 hourly mean","Monthly 1/2 hourly maximum","Monthly daily mean","Monthly daily maximum"]
[null,null,null,null,null,null,null,null,null,"A4","Jan"]
[null,null,null,null,null,null,null,null,null,null,"Feb"]
[null,null,null,null,null,null,null,null,null,null,"Mar"]
[null,null,null,null,null,null,null,null,null,null,"Apr"]
[null,null,null,null,null,null,null,null,null,null,"May"]
[null,null,null,null,null,null,null,null,null,null,"Jun"]
[null,null,null,null,null,null,null,null,null,null,"Jul"]
[null,null,null,null,null,null,null,null,null,null,"Aug"]
[null,null,null,null,null,null,null,null,null,null,"Sep"]
[null,null,null,null,null,null,null,null,null,null,"Oct"]
[null,null,null,null,null,null,null,null,null,null,"Nov"]
[null,null,null,null,null,null,null,null,null,null,"Dec"]
[null,null,null,null,null,null,null,null,null,null,"Annual",{"$f":"AVERAGE(L52:L63)","v":{"$error":"#DIV/0!"}},{"$f":"MAX(M52:M63)","v":0},{"$f":"AVERAGE(N52:N63)","v":{"$error":"#DIV/0!"}},{"$f":"MAX(O52:O63)","v":0}]
[]
[null,null,null,null,null,null,null,null,null,{"$f":"+A6","v":2023},"mg/Nm3","Monthly 1/2 hourly mean","Monthly 1/2 hourly maximum","Monthly daily mean","Monthly daily maximum"]
[null,null,null,null,null,null,null,null,null,"A5","Jan"]
[null,null,null,null,null,null,null,null,null,null,"Feb"]
[null,null,null,null,null,null,null,null,null,null,"Mar"]
[null,null,null,null,null,null,null,null,null,null,"Apr"]
[null,null,null,null,null,null,null,null,null,null,"May"]
[null,null,null,null,null,null,null,null,null,null,"Jun"]
[null,null,null,null,null,null,null,null,null,null,"Jul"]
[null,null,null,null,null,null,null,null,null,null,"Aug"]
[null,null,null,null,null,null,null,null,null,null,"Sep"]
[null,null,null,null,null,null,null,null,null,null,"Oct"]
[null,null,null,null,null,null,null,null,null,null,"Nov"]
[null,null,null,null,null,null,null,null,null,null,"Dec"]
[null,null,null,null,null,null,null,null,null,null,"Annual",{"$f":"AVERAGE(L67:L78)","v":{"$error":"#DIV/0!"}},{"$f":"MAX(M67:M78)","v":0},{"$f":"AVERAGE(N67:N78)","v":{"$error":"#DIV/0!"}},{"$f":"MAX(O67:O78)","v":0}]